{"text_format":"1","workbook":"xlsx","n_sheets":2,"sheets":["Tablica","Šifrarnici"],"not_rendered":{"charts":0,"images":0,"macros":0,"external_links":0,"defined_names":1,"comments":0,"pivot_tables":0},"unopened":[],"bounds":{"document_bytes":16777216,"sheet_cells":100000,"rows_first":2000,"rows_last":500,"rows_between":2000,"halvings":0,"cell_chars":16384,"cell_head_chars":4096},"cells_cut":0,"cells_raw":0,"read":"whole","date_system":"1900"}

{"sheet":"Tablica","index":0,"n_rows":578,"n_cols":13,"rows_kept":578,"cut":false,"hidden":false,"merged":[[575,0,575,5],[577,0,577,12],[0,0,0,12]]}
["PRIKAZ RASPOLAGANJA PO KATASTARSKIM ČESTICAMA I OBLICIMA RASPOLAGANJA"]
["r.br","županija","općina","katastarska općina naziv","katastarska općina brojčana oznaka","katastarska čestica broj","katastarska čestica površina        m2","katastarska čestica način uporabe/katastarska kultura","katastarska čestica predviđeni oblik raspolaganja","katastarska čestica specifičnosti","katastarska čestica dosadašnji oblik raspolaganja","katastarska čestica trajanje  raspolaganja         (do datuma)","NAPOMENA"]
[1,2,3,4,5,6,7,8,9,10,11,12,13]
[1,"VII BJELOVARSKO-BILOGORSKA","ŠANDROVAC","LASOVAC",301183,"112/24",3571,"ORANICA","PRODAJA","P3"]
[{"$f":"A4+1","v":2},"VII BJELOVARSKO-BILOGORSKA","ŠANDROVAC","LASOVAC",301183,"16/1",5877,"LIVADA","ZAKUP","P3/MN, DIO U G.P.",null,null,"DIO K.Č., SUVLASNIŠTVO"]
[{"$f":"A5+1","v":3},"VII BJELOVARSKO-BILOGORSKA","ŠANDROVAC","LASOVAC",301183,"181/3",680,"LIVADA","ZAKUP","P3"]
[4,"VII BJELOVARSKO-BILOGORSKA","ŠANDROVAC","LASOVAC",301183,"191/7",241,"LIVADA","ZAKUP","P3",null,null,"DIO K.Č., SUVLASNIŠTVO"]
[5,"VII BJELOVARSKO-BILOGORSKA","ŠANDROVAC","LASOVAC",301183,"202/38",4107,"ORANICA","ZAKUP","P3, DIO ČESTICE U SUSTAVU PLANIRANOG JAVNOG NAVODNJAVANJA","ZAKUP","09.12.2045."]
[6,"VII BJELOVARSKO-BILOGORSKA","ŠANDROVAC","LASOVAC",301183,"202/8",1065,"LIVADA","ZAKUP","P3, DIO U G.P., U SUSTAVU PLANIRANOG JAVNOG NAVODNJAVANJA"]
[7,"VII BJELOVARSKO-BILOGORSKA","ŠANDROVAC","LASOVAC",301183,"202/9",29,"ORANICA","ZAKUP","P3, U SUSTAVU PLANIRANOG JAVNOG NAVODNJAVANJA"]
[8,"VII BJELOVARSKO-BILOGORSKA","ŠANDROVAC","LASOVAC",301183,"299/3",784,"ORANICA","PRODAJA","PŠ","PRIVREMENO KORIŠTENJE POLJOPRIVREDNOG ZEMLJIŠTA U VLASNIŠTVU RH","2024-01-10"]
[9,"VII BJELOVARSKO-BILOGORSKA","ŠANDROVAC","LASOVAC",301183,"303/19",1500,"ORANICA","ZAKUP","P3/PŠ",null,null,"DIO K.Č., SUVLASNIŠTVO"]
[10,"VII BJELOVARSKO-BILOGORSKA","ŠANDROVAC","LASOVAC",301183,"303/21",3291,"ORANICA","ZAKUP","P3"]
[11,"VII BJELOVARSKO-BILOGORSKA","ŠANDROVAC","LASOVAC",301183,"322/1",417,"LIVADA","ZAKUP","PŠ"]
[12,"VII BJELOVARSKO-BILOGORSKA","ŠANDROVAC","LASOVAC",301183,"420/1",1892,"ORANICA","ZAKUP","P3, DIO ČESTICE U SUSTAVU PLANIRANOG JAVNOG NAVODNJAVANJA"]
[13,"VII BJELOVARSKO-BILOGORSKA","ŠANDROVAC","LASOVAC",301183,"434/3",2158,"ORANICA","ZAKUP","P3, U SUSTAVU PLANIRANOG JAVNOG NAVODNJAVANJA","ZAKUP","09.12.2045."]
[14,"VII BJELOVARSKO-BILOGORSKA","ŠANDROVAC","LASOVAC",301183,"436/3",820,"LIVADA","ZAKUP","P3, U SUSTAVU PLANIRANOG JAVNOG NAVODNJAVANJA"]
[15,"VII BJELOVARSKO-BILOGORSKA","ŠANDROVAC","LASOVAC",301183,"448",1550,"ORANICA","ZAKUP","P3/MN, DIO U G.P., DIO ČESTICE U SUSTAVU PLANIRANOG JAVNOG NAVODNJAVANJA"]
[16,"VII BJELOVARSKO-BILOGORSKA","ŠANDROVAC","LASOVAC",301183,"456",3507,"ORANICA","ZAKUP","P3, U SUSTAVU PLANIRANOG JAVNOG NAVODNJAVANJA"]
[17,"VII BJELOVARSKO-BILOGORSKA","ŠANDROVAC","LASOVAC",301183,"482/1",2723,"ORANICA","ZAKUP","P3, U SUSTAVU PLANIRANOG JAVNOG NAVODNJAVANJA","ZAKUP","09.12.2045."]
[18,"VII BJELOVARSKO-BILOGORSKA","ŠANDROVAC","LASOVAC",301183,"482/2",5143,"ORANICA","ZAKUP","P3, U SUSTAVU PLANIRANOG JAVNOG NAVODNJAVANJA","ZAKUP","09.12.2045."]
[19,"VII BJELOVARSKO-BILOGORSKA","ŠANDROVAC","LASOVAC",301183,"482/5",1252,"ORANICA","ZAKUP","P3, U SUSTAVU PLANIRANOG JAVNOG NAVODNJAVANJA","ZAKUP","09.12.2045."]
[20,"VII BJELOVARSKO-BILOGORSKA","ŠANDROVAC","LASOVAC",301183,"483/2",788,"ORANICA","ZAKUP","P3, U SUSTAVU PLANIRANOG JAVNOG NAVODNJAVANJA","ZAKUP","09.12.2045."]
[21,"VII BJELOVARSKO-BILOGORSKA","ŠANDROVAC","LASOVAC",301183,"484/5",6161,"ORANICA","ZAKUP","P3, U SUSTAVU PLANIRANOG JAVNOG NAVODNJAVANJA","ZAKUP","09.12.2045."]
[22,"VII BJELOVARSKO-BILOGORSKA","ŠANDROVAC","LASOVAC",301183,"487/6",5560,"LIVADA","ZAKUP","PŠ, U SUSTAVU PLANIRANOG JAVNOG NAVODNJAVANJA"]
[23,"VII BJELOVARSKO-BILOGORSKA","ŠANDROVAC","LASOVAC",301183,"492/6",2507,"ORANICA","ZAKUP","P3, DIO ČESTICE U SUSTAVU PLANIRANOG JAVNOG NAVODNJAVANJA","ZAKUP","09.12.2045."]
[24,"VII BJELOVARSKO-BILOGORSKA","ŠANDROVAC","LASOVAC",301183,"495/3",2982,"LIVADA","ZAKUP","PŠ, DIO ČESTICE U SUSTAVU PLANIRANOG JAVNOG NAVODNJAVANJA"]
[25,"VII BJELOVARSKO-BILOGORSKA","ŠANDROVAC","LASOVAC",301183,"499/2",255,"ORANICA","ZAKUP","PŠ/P3, U SUSTAVU PLANIRANOG JAVNOG NAVODNJAVANJA"]
[26,"VII BJELOVARSKO-BILOGORSKA","ŠANDROVAC","LASOVAC",301183,"501/1",1762,"ORANICA","ZAKUP","PŠ/P3, U SUSTAVU PLANIRANOG JAVNOG NAVODNJAVANJA"]
[27,"VII BJELOVARSKO-BILOGORSKA","ŠANDROVAC","LASOVAC",301183,"501/2",1791,"ORANICA","ZAKUP","PŠ/P3, U SUSTAVU PLANIRANOG JAVNOG NAVODNJAVANJA"]
[28,"VII BJELOVARSKO-BILOGORSKA","ŠANDROVAC","LASOVAC",301183,"510/16",525,"ORANICA","ZAKUP","P3, U SUSTAVU PLANIRANOG JAVNOG NAVODNJAVANJA","ZAKUP","09.12.2045."]
[29,"VII BJELOVARSKO-BILOGORSKA","ŠANDROVAC","LASOVAC",301183,"510/30",2381,"LIVADA","ZAKUP","PŠ/P3, U SUSTAVU PLANIRANOG JAVNOG NAVODNJAVANJA"]
[30,"VII BJELOVARSKO-BILOGORSKA","ŠANDROVAC","LASOVAC",301183,"513/1",12284,"ORANICA","ZAKUP","P3, U SUSTAVU PLANIRANOG JAVNOG NAVODNJAVANJA"]
[31,"VII BJELOVARSKO-BILOGORSKA","ŠANDROVAC","LASOVAC",301183,"531/3",30008,"ORANICA","ZAKUP","P2, U SUSTAVU PLANIRANOG JAVNOG NAVODNJAVANJA","ZAKUP","09.12.2045."]
[32,"VII BJELOVARSKO-BILOGORSKA","ŠANDROVAC","LASOVAC",301183,"533/4",1636,"ORANICA","ZAKUP","P3, U SUSTAVU PLANIRANOG JAVNOG NAVODNJAVANJA","ZAKUP","09.12.2045."]
[33,"VII BJELOVARSKO-BILOGORSKA","ŠANDROVAC","LASOVAC",301183,"533/6",3708,"ORANICA","ZAKUP","P3, U SUSTAVU PLANIRANOG JAVNOG NAVODNJAVANJA","ZAKUP","09.12.2045."]
[34,"VII BJELOVARSKO-BILOGORSKA","ŠANDROVAC","LASOVAC",301183,"535/1",45349,"ORANICA","ZAKUP","P2, U SUSTAVU PLANIRANOG JAVNOG NAVODNJAVANJA","ZAKUP","09.12.2045."]
[35,"VII BJELOVARSKO-BILOGORSKA","ŠANDROVAC","LASOVAC",301183,"546/1",658,"ORANICA","ZAKUP","P3, U SUSTAVU PLANIRANOG JAVNOG NAVODNJAVANJA"]
[36,"VII BJELOVARSKO-BILOGORSKA","ŠANDROVAC","LASOVAC",301183,"546/4",1543,"ORANICA","ZAKUP","P3, U SUSTAVU PLANIRANOG JAVNOG NAVODNJAVANJA"]
[37,"VII BJELOVARSKO-BILOGORSKA","ŠANDROVAC","LASOVAC",301183,"547/1",352,"ORANICA","ZAKUP","PŠ, U SUSTAVU PLANIRANOG JAVNOG NAVODNJAVANJA"]
[38,"VII BJELOVARSKO-BILOGORSKA","ŠANDROVAC","LASOVAC",301183,"547/2",76,"ORANICA","ZAKUP","PŠ, U SUSTAVU PLANIRANOG JAVNOG NAVODNJAVANJA"]
[39,"VII BJELOVARSKO-BILOGORSKA","ŠANDROVAC","LASOVAC",301183,"548/1",1737,"ORANICA","ZAKUP","P3, U SUSTAVU PLANIRANOG JAVNOG NAVODNJAVANJA"]
[40,"VII BJELOVARSKO-BILOGORSKA","ŠANDROVAC","LASOVAC",301183,"548/2",421,"ORANICA","ZAKUP","PŠ,U SUSTAVU PLANIRANOG JAVNOG NAVODNJAVANJA"]
[41,"VII BJELOVARSKO-BILOGORSKA","ŠANDROVAC","LASOVAC",301183,"562/2",1374,"ORANICA","ZAKUP","P3, U SUSTAVU PLANIRANOG JAVNOG NAVODNJAVANJA"]
[42,"VII BJELOVARSKO-BILOGORSKA","ŠANDROVAC","LASOVAC",301183,"562/3",1824,"ORANICA","ZAKUP","P3, U SUSTAVU PLANIRANOG JAVNOG NAVODNJAVANJA"]
[43,"VII BJELOVARSKO-BILOGORSKA","ŠANDROVAC","LASOVAC",301183,"562/4",2338,"ORANICA","ZAKUP","P3, U SUSTAVU PLANIRANOG JAVNOG NAVODNJAVANJA"]
[44,"VII BJELOVARSKO-BILOGORSKA","ŠANDROVAC","LASOVAC",301183,"562/5",2532,"ORANICA","ZAKUP","P3, U SUSTAVU PLANIRANOG JAVNOG NAVODNJAVANJA"]
[45,"VII BJELOVARSKO-BILOGORSKA","ŠANDROVAC","LASOVAC",301183,"563/2",3938,"ORANICA","ZAKUP","PŠ/P3, U SUSTAVU PLANIRANOG JAVNOG NAVODNJAVANJA","ZAKUP","23.12.2020. - 23.12.2045."]
[46,"VII BJELOVARSKO-BILOGORSKA","ŠANDROVAC","LASOVAC",301183,"565/1",36,"ORANICA","ZAKUP","PŠ, U SUSTAVU PLANIRANOG JAVNOG NAVODNJAVANJA"]
[47,"VII BJELOVARSKO-BILOGORSKA","ŠANDROVAC","LASOVAC",301183,"565/2",396,"ORANICA","ZAKUP","PŠ, U SUSTAVU PLANIRANOG JAVNOG NAVODNJAVANJA"]
[48,"VII BJELOVARSKO-BILOGORSKA","ŠANDROVAC","LASOVAC",301183,"565/3",619,"ORANICA","ZAKUP","PŠ, U SUSTAVU PLANIRANOG JAVNOG NAVODNJAVANJA"]
[49,"VII BJELOVARSKO-BILOGORSKA","ŠANDROVAC","LASOVAC",301183,"566/1",1270,"ORANICA","ZAKUP","PŠ/P3, U SUSTAVU PLANIRANOG JAVNOG NAVODNJAVANJA","ZAKUP","09.12.2045."]
[50,"VII BJELOVARSKO-BILOGORSKA","ŠANDROVAC","LASOVAC",301183,"566/3",1960,"ORANICA","ZAKUP","PŠ/P3, U SUSTAVU PLANIRANOG JAVNOG NAVODNJAVANJA","ZAKUP","09.12.2045."]
[51,"VII BJELOVARSKO-BILOGORSKA","ŠANDROVAC","LASOVAC",301183,"566/4",2183,"ORANICA","ZAKUP","PŠ/P3, U SUSTAVU PLANIRANOG JAVNOG NAVODNJAVANJA","ZAKUP","09.12.2045."]
[52,"VII BJELOVARSKO-BILOGORSKA","ŠANDROVAC","LASOVAC",301183,"566/5",424,"ORANICA","ZAKUP","PŠ/P3, U SUSTAVU PLANIRANOG JAVNOG NAVODNJAVANJA","ZAKUP","09.12.2045."]
[53,"VII BJELOVARSKO-BILOGORSKA","ŠANDROVAC","LASOVAC",301183,"566/6",424,"ORANICA","ZAKUP","PŠ/P3, U SUSTAVU PLANIRANOG JAVNOG NAVODNJAVANJA"]
[54,"VII BJELOVARSKO-BILOGORSKA","ŠANDROVAC","LASOVAC",301183,"566/7",424,"ORANICA","ZAKUP","PŠ/P3, U SUSTAVU PLANIRANOG JAVNOG NAVODNJAVANJA","ZAKUP","09.12.2045."]
[55,"VII BJELOVARSKO-BILOGORSKA","ŠANDROVAC","LASOVAC",301183,"568/1",5985,"LIVADA","ZAKUP","PŠ/P3, DIO ČESTICE U SUSTAVU PLANIRANOG JAVNOG NAVODNJAVANJA"]
[56,"VII BJELOVARSKO-BILOGORSKA","ŠANDROVAC","LASOVAC",301183,"569/1",1079,"ORANICA","ZAKUP","PŠ/P3, U SUSTAVU PLANIRANOG JAVNOG NAVODNJAVANJA"]
[57,"VII BJELOVARSKO-BILOGORSKA","ŠANDROVAC","LASOVAC",301183,"569/10",1018,"ORANICA","ZAKUP","PŠ/P3, U SUSTAVU PLANIRANOG JAVNOG NAVODNJAVANJA"]
[58,"VII BJELOVARSKO-BILOGORSKA","ŠANDROVAC","LASOVAC",301183,"569/11",2100,"ORANICA","ZAKUP","PŠ/P3, U SUSTAVU PLANIRANOG JAVNOG NAVODNJAVANJA"]
[59,"VII BJELOVARSKO-BILOGORSKA","ŠANDROVAC","LASOVAC",301183,"569/2",525,"ORANICA","ZAKUP","P3, U SUSTAVU PLANIRANOG JAVNOG NAVODNJAVANJA"]
[60,"VII BJELOVARSKO-BILOGORSKA","ŠANDROVAC","LASOVAC",301183,"569/3",129,"ORANICA","ZAKUP","P3, U SUSTAVU PLANIRANOG JAVNOG NAVODNJAVANJA"]
[61,"VII BJELOVARSKO-BILOGORSKA","ŠANDROVAC","LASOVAC",301183,"569/4",126,"ORANICA","ZAKUP","P3, U SUSTAVU PLANIRANOG JAVNOG NAVODNJAVANJA"]
[62,"VII BJELOVARSKO-BILOGORSKA","ŠANDROVAC","LASOVAC",301183,"569/6",633,"ORANICA","ZAKUP","P3, U SUSTAVU PLANIRANOG JAVNOG NAVODNJAVANJA"]
[63,"VII BJELOVARSKO-BILOGORSKA","ŠANDROVAC","LASOVAC",301183,"569/7",539,"ORANICA","ZAKUP","P3, U SUSTAVU PLANIRANOG JAVNOG NAVODNJAVANJA"]
[64,"VII BJELOVARSKO-BILOGORSKA","ŠANDROVAC","LASOVAC",301183,"569/8",921,"ORANICA","ZAKUP","PŠ/P3, U SUSTAVU PLANIRANOG JAVNOG NAVODNJAVANJA"]
[65,"VII BJELOVARSKO-BILOGORSKA","ŠANDROVAC","LASOVAC",301183,"570/2",1561,"LIVADA","ZAKUP","PŠ, U SUSTAVU PLANIRANOG JAVNOG NAVODNJAVANJA"]
[{"$f":"A68+1","v":66},"VII BJELOVARSKO-BILOGORSKA","ŠANDROVAC","LASOVAC",301183,"570/4",2564,"LIVADA","ZAKUP","PŠ, U SUSTAVU PLANIRANOG JAVNOG NAVODNJAVANJA"]
[67,"VII BJELOVARSKO-BILOGORSKA","ŠANDROVAC","LASOVAC",301183,"571/4",946,"LIVADA","ZAKUP","PŠ"]
[68,"VII BJELOVARSKO-BILOGORSKA","ŠANDROVAC","LASOVAC",301183,"573/1",683,"LIVADA","ZAKUP","PŠ/P3, U SUSTAVU PLANIRANOG JAVNOG NAVODNJAVANJA"]
[69,"VII BJELOVARSKO-BILOGORSKA","ŠANDROVAC","LASOVAC",301183,"573/1",1676,"ORANICA","ZAKUP","PŠ/P3, U SUSTAVU PLANIRANOG JAVNOG NAVODNJAVANJA"]
[70,"VII BJELOVARSKO-BILOGORSKA","ŠANDROVAC","LASOVAC",301183,"573/2",2140,"ORANICA","ZAKUP","PŠ/P3, U SUSTAVU PLANIRANOG JAVNOG NAVODNJAVANJA"]
[71,"VII BJELOVARSKO-BILOGORSKA","ŠANDROVAC","LASOVAC",301183,"574/1",1651,"ORANICA","ZAKUP","PŠ/P3, U SUSTAVU PLANIRANOG JAVNOG NAVODNJAVANJA"]
[72,"VII BJELOVARSKO-BILOGORSKA","ŠANDROVAC","LASOVAC",301183,"574/1",899,"LIVADA","ZAKUP","PŠ/P3, U SUSTAVU PLANIRANOG JAVNOG NAVODNJAVANJA"]
[73,"VII BJELOVARSKO-BILOGORSKA","ŠANDROVAC","LASOVAC",301183,"576/3",1967,"LIVADA","ZAKUP","PŠ"]
[74,"VII BJELOVARSKO-BILOGORSKA","ŠANDROVAC","LASOVAC",301183,"578/1",1360,"LIVADA","ZAKUP","PŠ"]
[75,"VII BJELOVARSKO-BILOGORSKA","ŠANDROVAC","LASOVAC",301183,"579/2",626,"LIVADA","ZAKUP","PŠ"]
[76,"VII BJELOVARSKO-BILOGORSKA","ŠANDROVAC","LASOVAC",301183,581,4320,"LIVADA","PRODAJA","PŠ","PRIVREMENO KORIŠTENJE POLJOPRIVREDNOG ZEMLJIŠTA U VLASNIŠTVU RH","09/2022"]
[77,"VII BJELOVARSKO-BILOGORSKA","ŠANDROVAC","LASOVAC",301183,"584/8",975,"LIVADA","ZAKUP","PŠ"]
[78,"VII BJELOVARSKO-BILOGORSKA","ŠANDROVAC","LASOVAC",301183,"585/2",960,"LIVADA","ZAKUP","PŠ"]
[79,"VII BJELOVARSKO-BILOGORSKA","ŠANDROVAC","LASOVAC",301183,"585/3",1259,"LIVADA","ZAKUP","PŠ"]
[80,"VII BJELOVARSKO-BILOGORSKA","ŠANDROVAC","LASOVAC",301183,"591/2",1345,"LIVADA","ZAKUP","PŠ/P3, DIO ČESTICE U SUSTAVU PLANIRANOG JAVNOG NAVODNJAVANJA"]
[81,"VII BJELOVARSKO-BILOGORSKA","ŠANDROVAC","LASOVAC",301183,"591/3",1798,"LIVADA","ZAKUP","PŠ/P3, DIO ČESTICE U SUSTAVU PLANIRANOG JAVNOG NAVODNJAVANJA"]
[82,"VII BJELOVARSKO-BILOGORSKA","ŠANDROVAC","LASOVAC",301183,"593",10315,"ORANICA","ZAKUP","P3, U SUSTAVU PLANIRANOG JAVNOG NAVODNJAVANJA","ZAKUP","09.12.2045."]
[83,"VII BJELOVARSKO-BILOGORSKA","ŠANDROVAC","LASOVAC",301183,"594/6",1180,"ORANICA","ZAKUP","P3, U SUSTAVU PLANIRANOG JAVNOG NAVODNJAVANJA"]
[84,"VII BJELOVARSKO-BILOGORSKA","ŠANDROVAC","LASOVAC",301183,"595/6",899,"ORANICA","ZAKUP","PŠ"]
[85,"VII BJELOVARSKO-BILOGORSKA","ŠANDROVAC","LASOVAC",301183,"595/6",892,"LIVADA","ZAKUP","PŠ"]
[86,"VII BJELOVARSKO-BILOGORSKA","ŠANDROVAC","LASOVAC",301183,"596/6",971,"LIVADA","ZAKUP","PŠ"]
[87,"VII BJELOVARSKO-BILOGORSKA","ŠANDROVAC","LASOVAC",301183,"597/6",295,"LIVADA","ZAKUP","PŠ"]
[88,"VII BJELOVARSKO-BILOGORSKA","ŠANDROVAC","LASOVAC",301183,"599/2",1313,"ORANICA","ZAKUP","P3"]
[89,"VII BJELOVARSKO-BILOGORSKA","ŠANDROVAC","LASOVAC",301183,"601",1313,"ORANICA","ZAKUP","P3, DIO ČESTICE U SUSTAVU PLANIRANOG JAVNOG NAVODNJAVANJA",null,null,"DIO K.Č., SUVLASNIŠTVO"]
[90,"VII BJELOVARSKO-BILOGORSKA","ŠANDROVAC","LASOVAC",301183,"615/1",3845,"LIVADA","ZAKUP","P3",null,null,"DIO K.Č., SUVLASNIŠTVO"]
[91,"VII BJELOVARSKO-BILOGORSKA","ŠANDROVAC","LASOVAC",301183,"620/2",1856,"LIVADA","ZAKUP","P3"]
[92,"VII BJELOVARSKO-BILOGORSKA","ŠANDROVAC","LASOVAC",301183,"622/2",539,"LIVADA","ZAKUP","P3/PŠ, DIO ČESTICE U SUSTAVU PLANIRANOG JAVNOG NAVODNJAVANJA","ZAKUP","23.12.2020. - 23.12.2045."]
[93,"VII BJELOVARSKO-BILOGORSKA","ŠANDROVAC","LASOVAC",301183,"622/2",8797,"ORANICA","ZAKUP","P3/PŠ, DIO ČESTICE U SUSTAVU PLANIRANOG JAVNOG NAVODNJAVANJA","ZAKUP","23.12.2020. - 23.12.2045."]
[94,"VII BJELOVARSKO-BILOGORSKA","ŠANDROVAC","LASOVAC",301183,"622/3",3237,"ORANICA","ZAKUP","P3/PŠ, DIO ČESTICE U SUSTAVU PLANIRANOG JAVNOG NAVODNJAVANJA","ZAKUP","23.12.2020. - 23.12.2045.","DIO K.Č., SUVLASNIŠTVO"]
[95,"VII BJELOVARSKO-BILOGORSKA","ŠANDROVAC","LASOVAC",301183,"622/4",1741,"ORANICA","ZAKUP","P3/PŠ, DIO ČESTICE U SUSTAVU PLANIRANOG JAVNOG NAVODNJAVANJA","ZAKUP","23.12.2020. - 23.12.2045."]
[96,"VII BJELOVARSKO-BILOGORSKA","ŠANDROVAC","LASOVAC",301183,"624",3248,"LIVADA","ZAKUP","P3/PŠ, DIO ČESTICE U SUSTAVU PLANIRANOG JAVNOG NAVODNJAVANJA"]
[97,"VII BJELOVARSKO-BILOGORSKA","ŠANDROVAC","LASOVAC",301183,"627/1",2543,"ORANICA","ZAKUP","P3, DIO ČESTICE U SUSTAVU PLANIRANOG JAVNOG NAVODNJAVANJA","ZAKUP","23.12.2020. - 23.12.2045."]
[98,"VII BJELOVARSKO-BILOGORSKA","ŠANDROVAC","LASOVAC",301183,"627/2",2546,"ORANICA","ZAKUP","P3, DIO ČESTICE U SUSTAVU PLANIRANOG JAVNOG NAVODNJAVANJA","ZAKUP","23.12.2020. - 23.12.2045."]
[99,"VII BJELOVARSKO-BILOGORSKA","ŠANDROVAC","LASOVAC",301183,"628/1",5837,"ORANICA","ZAKUP","PŠ/P3, DIO ČESTICE U SUSTAVU PLANIRANOG JAVNOG NAVODNJAVANJA","ZAKUP","23.12.2020. - 23.12.2045."]
[100,"VII BJELOVARSKO-BILOGORSKA","ŠANDROVAC","LASOVAC",301183,"645/1",4881,"ORANICA","ZAKUP","PŠ/P3, DIO ČESTICE U SUSTAVU PLANIRANOG JAVNOG NAVODNJAVANJA",null,null,"DIO K.Č., SUVLASNIŠTVO"]
[101,"VII BJELOVARSKO-BILOGORSKA","ŠANDROVAC","LASOVAC",301183,"656/2",975,"ORANICA","ZAKUP","P2, DIO ČESTICE U SUSTAVU PLANIRANOG JAVNOG NAVODNJAVANJA"]
[102,"VII BJELOVARSKO-BILOGORSKA","ŠANDROVAC","LASOVAC",301183,"658/2",1140,"ORANICA","ZAKUP","P2, U SUSTAVU PLANIRANOG JAVNOG NAVODNJAVANJA"]
[103,"VII BJELOVARSKO-BILOGORSKA","ŠANDROVAC","LASOVAC",301183,"664",2090,"ORANICA","ZAKUP","P3, U SUSTAVU PLANIRANOG JAVNOG NAVODNJAVANJA"]
[104,"VII BJELOVARSKO-BILOGORSKA","ŠANDROVAC","LASOVAC",301183,"671/1",5776,"ORANICA","ZAKUP","P2, U SUSTAVU PLANIRANOG JAVNOG NAVODNJAVANJA"]
[105,"VII BJELOVARSKO-BILOGORSKA","ŠANDROVAC","LASOVAC",301183,"672/2",4960,"ORANICA","ZAKUP","P2, U SUSTAVU PLANIRANOG JAVNOG NAVODNJAVANJA","ZAKUP","30.12.2020. - 30.12.2045."]
[106,"VII BJELOVARSKO-BILOGORSKA","ŠANDROVAC","LASOVAC",301183,"672/3",3316,"ORANICA","ZAKUP","P2, U SUSTAVU PLANIRANOG JAVNOG NAVODNJAVANJA","ZAKUP","30.12.2020. - 30.12.2045."]
[107,"VII BJELOVARSKO-BILOGORSKA","ŠANDROVAC","LASOVAC",301183,"676",4082,"ORANICA","ZAKUP","PŠ/P3, U SUSTAVU PLANIRANOG JAVNOG NAVODNJAVANJA"]
[108,"VII BJELOVARSKO-BILOGORSKA","ŠANDROVAC","LASOVAC",301183,"677",705,"ORANICA","ZAKUP","P3, U SUSTAVU PLANIRANOG JAVNOG NAVODNJAVANJA"]
[109,"VII BJELOVARSKO-BILOGORSKA","ŠANDROVAC","LASOVAC",301183,"678/4",6942,"ORANICA","ZAKUP","P2, U SUSTAVU PLANIRANOG JAVNOG NAVODNJAVANJA"]
[110,"VII BJELOVARSKO-BILOGORSKA","ŠANDROVAC","LASOVAC",301183,"684/1",1428,"ORANICA","ZAKUP","P2, U SUSTAVU PLANIRANOG JAVNOG NAVODNJAVANJA","ZAKUP","23.12.2020. - 23.12.2045."]
[111,"VII BJELOVARSKO-BILOGORSKA","ŠANDROVAC","LASOVAC",301183,"684/2",5837,"ORANICA","ZAKUP","P2, U SUSTAVU PLANIRANOG JAVNOG NAVODNJAVANJA","ZAKUP","23.12.2020. - 23.12.2045."]
[112,"VII BJELOVARSKO-BILOGORSKA","ŠANDROVAC","LASOVAC",301183,"684/3",2061,"ORANICA","ZAKUP","P2, U SUSTAVU PLANIRANOG JAVNOG NAVODNJAVANJA","ZAKUP","23.12.2020. - 23.12.2045."]
[113,"VII BJELOVARSKO-BILOGORSKA","ŠANDROVAC","LASOVAC",301183,"684/4",2057,"ORANICA","ZAKUP","P2, U SUSTAVU PLANIRANOG JAVNOG NAVODNJAVANJA","ZAKUP","23.12.2020. - 23.12.2045."]
[114,"VII BJELOVARSKO-BILOGORSKA","ŠANDROVAC","LASOVAC",301183,"685/3",5848,"ORANICA","ZAKUP","P2, U SUSTAVU PLANIRANOG JAVNOG NAVODNJAVANJA"]
[115,"VII BJELOVARSKO-BILOGORSKA","ŠANDROVAC","LASOVAC",301183,"687/4",4413,"ORANICA","ZAKUP","P2, U SUSTAVU PLANIRANOG JAVNOG NAVODNJAVANJA"]
[116,"VII BJELOVARSKO-BILOGORSKA","ŠANDROVAC","LASOVAC",301183,"687/4",468,"VINOGRAD","ZAKUP","P2, U SUSTAVU PLANIRANOG JAVNOG NAVODNJAVANJA"]
[117,"VII BJELOVARSKO-BILOGORSKA","ŠANDROVAC","LASOVAC",301183,"692/4",2849,"ORANICA","ZAKUP","P2/P3, DIO ČESTICE U SUSTAVU PLANIRANOG JAVNOG NAVODNJAVANJA"]
[118,"VII BJELOVARSKO-BILOGORSKA","ŠANDROVAC","LASOVAC",301183,"693/1",7876,"ORANICA","ZAKUP","P2/P3/PŠ, U SUSTAVU PLANIRANOG JAVNOG NAVODNJAVANJA"]
[119,"VII BJELOVARSKO-BILOGORSKA","ŠANDROVAC","LASOVAC",301183,"789/5",2809,"ORANICA","ZAKUP","P2/P3, DIO ČESTICE U SUSTAVU PLANIRANOG JAVNOG NAVODNJAVANJA"]
[120,"VII BJELOVARSKO-BILOGORSKA","ŠANDROVAC","LASOVAC",301183,"789/7",2917,"ORANICA","ZAKUP","P2, U SUSTAVU PLANIRANOG JAVNOG NAVODNJAVANJA"]
[121,"VII BJELOVARSKO-BILOGORSKA","ŠANDROVAC","LASOVAC",301183,"80/5",942,"LIVADA","ZAKUP","Š1/PŠ"]
[122,"VII BJELOVARSKO-BILOGORSKA","ŠANDROVAC","LASOVAC",301183,"81/24",1554,"PAŠNJAK","ZAKUP","P3"]
[123,"VII BJELOVARSKO-BILOGORSKA","ŠANDROVAC","LASOVAC",301183,"81/29",1683,"PAŠNJAK","ZAKUP","P3"]
[124,"VII BJELOVARSKO-BILOGORSKA","ŠANDROVAC","LASOVAC",301183,"974/6",65,"ORANICA","ZAKUP","PŠ, U SUSTAVU PLANIRANOG JAVNOG NAVODNJAVANJA"]
[125,"VII BJELOVARSKO-BILOGORSKA","ŠANDROVAC","LASOVAC",301183,"994/25",90,"ORANICA","PRODAJA","PŠ",null,null,"994/1/A"]
[126,"VII BJELOVARSKO-BILOGORSKA","ŠANDROVAC","PUPELICA",301353,"16/1",399,"ORANICA","ZAKUP","Š1/PŠ"]
[127,"VII BJELOVARSKO-BILOGORSKA","ŠANDROVAC","PUPELICA",301353,"165/4",1687,"ORANICA","ZAKUP","PŠ"]
[128,"VII BJELOVARSKO-BILOGORSKA","ŠANDROVAC","PUPELICA",301353,"165/4",1547,"LIVADA","ZAKUP","PŠ"]
[129,"VII BJELOVARSKO-BILOGORSKA","ŠANDROVAC","PUPELICA",301353,"166/4",504,"LIVADA","ZAKUP","PŠ"]
[130,"VII BJELOVARSKO-BILOGORSKA","ŠANDROVAC","PUPELICA",301353,"169/1",3536,"ORANICA","ZAKUP","PŠ"]
[{"$f":"A133+1","v":131},"VII BJELOVARSKO-BILOGORSKA","ŠANDROVAC","PUPELICA",301353,"17/1",543,"ORANICA","ZAKUP","PŠ"]
[132,"VII BJELOVARSKO-BILOGORSKA","ŠANDROVAC","PUPELICA",301353,"179/3",1050,"ORANICA","ZAKUP","PŠ",null,null,"DIO K.Č., SUVLASNIŠTVO"]
[133,"VII BJELOVARSKO-BILOGORSKA","ŠANDROVAC","PUPELICA",301353,"179/4",1571,"ORANICA","ZAKUP","PŠ",null,null,"DIO K.Č., SUVLASNIŠTVO"]
[134,"VII BJELOVARSKO-BILOGORSKA","ŠANDROVAC","PUPELICA",301353,"186/1",1654,"LIVADA","ZAKUP","PŠ"]
[135,"VII BJELOVARSKO-BILOGORSKA","ŠANDROVAC","PUPELICA",301353,"186/1",3057,"ORANICA","ZAKUP","PŠ"]
[136,"VII BJELOVARSKO-BILOGORSKA","ŠANDROVAC","PUPELICA",301353,"189/1",7654,"ORANICA","PRODAJA","PŠ","PRIVREMENO KORIŠTENJE POLJOPRIVREDNOG ZEMLJIŠTA U VLASNIŠTVU RH","09/2022"]
[137,"VII BJELOVARSKO-BILOGORSKA","ŠANDROVAC","PUPELICA",301353,"207/47",1672,"ORANICA","ZAKUP","PŠ"]
[138,"VII BJELOVARSKO-BILOGORSKA","ŠANDROVAC","PUPELICA",301353,"207/48",2510,"ORANICA","ZAKUP","Š1/PŠ"]
[139,"VII BJELOVARSKO-BILOGORSKA","ŠANDROVAC","PUPELICA",301353,"247/1",604,"ORANICA","ZAKUP","PŠ"]
[{"$f":"A142+1","v":140},"VII BJELOVARSKO-BILOGORSKA","ŠANDROVAC","PUPELICA",301353,"247/2",694,"ORANICA","ZAKUP","PŠ"]
[141,"VII BJELOVARSKO-BILOGORSKA","ŠANDROVAC","PUPELICA",301353,"248/2",5003,"LIVADA","PRODAJA","Š1/PŠ","PRIVREMENO KORIŠTENJE POLJOPRIVREDNOG ZEMLJIŠTA U VLASNIŠTVU RH","09/2022"]
[142,"VII BJELOVARSKO-BILOGORSKA","ŠANDROVAC","PUPELICA",301353,"248/3",8600,"ORANICA","PRODAJA","Š1/PŠ","PRIVREMENO KORIŠTENJE POLJOPRIVREDNOG ZEMLJIŠTA U VLASNIŠTVU RH","09/2022"]
[143,"VII BJELOVARSKO-BILOGORSKA","ŠANDROVAC","PUPELICA",301353,"248/4",5125,"LIVADA","PRODAJA","Š1/PŠ","PRIVREMENO KORIŠTENJE POLJOPRIVREDNOG ZEMLJIŠTA U VLASNIŠTVU RH","09/2022"]
[144,"VII BJELOVARSKO-BILOGORSKA","ŠANDROVAC","PUPELICA",301353,"269/4",504,"LIVADA","ZAKUP","PŠ"]
[145,"VII BJELOVARSKO-BILOGORSKA","ŠANDROVAC","PUPELICA",301353,"270/3",1032,"LIVADA","ZAKUP","PŠ"]
[146,"VII BJELOVARSKO-BILOGORSKA","ŠANDROVAC","PUPELICA",301353,"273/2",6787,"ORANICA","ZAKUP","PŠ"]
[147,"VII BJELOVARSKO-BILOGORSKA","ŠANDROVAC","PUPELICA",301353,"278/2",3532,"ORANICA","ZAKUP","PŠ"]
[148,"VII BJELOVARSKO-BILOGORSKA","ŠANDROVAC","PUPELICA",301353,"278/4",1795,"ORANICA","ZAKUP","PŠ"]
[149,"VII BJELOVARSKO-BILOGORSKA","ŠANDROVAC","PUPELICA",301353,"285/2",3629,"ORANICA","ZAKUP","PŠ"]
[150,"VII BJELOVARSKO-BILOGORSKA","ŠANDROVAC","PUPELICA",301353,"315/3",960,"ORANICA","ZAKUP","V/PŠ"]
[151,"VII BJELOVARSKO-BILOGORSKA","ŠANDROVAC","PUPELICA",301353,"315/4",410,"ORANICA","ZAKUP","V/PŠ"]
[152,"VII BJELOVARSKO-BILOGORSKA","ŠANDROVAC","PUPELICA",301353,"316/2",2413,"ORANICA","PRODAJA","V/PŠ","PRIVREMENO KORIŠTENJE POLJOPRIVREDNOG ZEMLJIŠTA U VLASNIŠTVU RH","2024-04-21"]
[153,"VII BJELOVARSKO-BILOGORSKA","ŠANDROVAC","PUPELICA",301353,"316/3",8175,"ORANICA","PRODAJA","V/PŠ","PRIVREMENO KORIŠTENJE POLJOPRIVREDNOG ZEMLJIŠTA U VLASNIŠTVU RH","2024-04-21"]
[154,"VII BJELOVARSKO-BILOGORSKA","ŠANDROVAC","PUPELICA",301353,"316/4",1137,"ORANICA","ZAKUP","PŠ"]
[155,"VII BJELOVARSKO-BILOGORSKA","ŠANDROVAC","PUPELICA",301353,"375/10",338,"ORANICA","ZAKUP","Š1/P3"]
[156,"VII BJELOVARSKO-BILOGORSKA","ŠANDROVAC","PUPELICA",301353,"375/8",1356,"PAŠNJAK","ZAKUP","Š1/P3"]
[157,"VII BJELOVARSKO-BILOGORSKA","ŠANDROVAC","PUPELICA",301353,"420/2",1525,"LIVADA","PRODAJA",null,"PRIVREMENO KORIŠTENJE POLJOPRIVREDNOG ZEMLJIŠTA U VLASNIŠTVU RH","2024-04-21"]
[158,"VII BJELOVARSKO-BILOGORSKA","ŠANDROVAC","PUPELICA",301353,"420/3",1525,"LIVADA","PRODAJA",null,"PRIVREMENO KORIŠTENJE POLJOPRIVREDNOG ZEMLJIŠTA U VLASNIŠTVU RH","2024-04-21"]
[159,"VII BJELOVARSKO-BILOGORSKA","ŠANDROVAC","PUPELICA",301353,"421/3",608,"LIVADA","ZAKUP","V/PŠ"]
[160,"VII BJELOVARSKO-BILOGORSKA","ŠANDROVAC","PUPELICA",301353,"427/6",1043,"LIVADA","ZAKUP","V/Š1/PŠ"]
[161,"VII BJELOVARSKO-BILOGORSKA","ŠANDROVAC","PUPELICA",301353,"496/4",3453,"ORANICA","PRODAJA","P3","PRIVREMENO KORIŠTENJE POLJOPRIVREDNOG ZEMLJIŠTA U VLASNIŠTVU RH","09/2022"]
[162,"VII BJELOVARSKO-BILOGORSKA","ŠANDROVAC","PUPELICA",301353,"514",1259,"VOĆNJAK","ZAKUP","P3/MN",null,null,"DIO U G.P."]
[163,"VII BJELOVARSKO-BILOGORSKA","ŠANDROVAC","PUPELICA",301353,"514",8452,"ORANICA","ZAKUP","P3/MN","ZAKUP","09.12.2045.","DIO U G.P."]
[164,"VII BJELOVARSKO-BILOGORSKA","ŠANDROVAC","PUPELICA",301353,"524/5",616,"ORANICA","ZAKUP","P3"]
[165,"VII BJELOVARSKO-BILOGORSKA","ŠANDROVAC","PUPELICA",301353,"524/5",220,"VOĆNJAK","ZAKUP","P3"]
[166,"VII BJELOVARSKO-BILOGORSKA","ŠANDROVAC","PUPELICA",301353,"524/7",732,"ORANICA","PRODAJA","P3","PRIVREMENO KORIŠTENJE POLJOPRIVREDNOG ZEMLJIŠTA U VLASNIŠTVU RH","2024-04-21"]
[167,"VII BJELOVARSKO-BILOGORSKA","ŠANDROVAC","PUPELICA",301353,"524/8",729,"ORANICA","ZAKUP","P3"]
[168,"VII BJELOVARSKO-BILOGORSKA","ŠANDROVAC","PUPELICA",301353,"536/1",5089,"ORANICA","ZAKUP","P3"]
[169,"VII BJELOVARSKO-BILOGORSKA","ŠANDROVAC","PUPELICA",301353,"537/2",360,"VOĆNJAK","ZAKUP","P3"]
[170,"VII BJELOVARSKO-BILOGORSKA","ŠANDROVAC","PUPELICA",301353,"537/2",3374,"ORANICA","ZAKUP","P3"]
[171,"VII BJELOVARSKO-BILOGORSKA","ŠANDROVAC","PUPELICA",301353,"537/3",3489,"ORANICA","ZAKUP","P3"]
[172,"VII BJELOVARSKO-BILOGORSKA","ŠANDROVAC","PUPELICA",301353,"537/3",360,"VOĆNJAK","ZAKUP","P3"]
[173,"VII BJELOVARSKO-BILOGORSKA","ŠANDROVAC","PUPELICA",301353,"590/2",1309,"ORANICA","ZAKUP","P3"]
[174,"VII BJELOVARSKO-BILOGORSKA","ŠANDROVAC","PUPELICA",301353,"590/5",1198,"VINOGRAD","ZAKUP","P3"]
[175,"VII BJELOVARSKO-BILOGORSKA","ŠANDROVAC","PUPELICA",301353,"612/1",90,"LIVADA","ZAKUP","P3ILIŠ1"]
[176,"VII BJELOVARSKO-BILOGORSKA","ŠANDROVAC","PUPELICA",301353,"622/2",1859,"ORANICA","ZAKUP","P3"]
[177,"VII BJELOVARSKO-BILOGORSKA","ŠANDROVAC","PUPELICA",301353,"622/5",1913,"ORANICA","ZAKUP","P3"]
[178,"VII BJELOVARSKO-BILOGORSKA","ŠANDROVAC","PUPELICA",301353,"623/7",3956,"ORANICA","ZAKUP","P3"]
[179,"VII BJELOVARSKO-BILOGORSKA","ŠANDROVAC","PUPELICA",301353,"623/7",486,"VINOGRAD","ZAKUP","P3"]
[180,"VII BJELOVARSKO-BILOGORSKA","ŠANDROVAC","PUPELICA",301353,"623/7",539,"LIVADA","ZAKUP","P3"]
[181,"VII BJELOVARSKO-BILOGORSKA","ŠANDROVAC","PUPELICA",301353,"707/36",809,"ORANICA","ZAKUP","P3",null,null,"DIO K.Č., SUVLASNIŠTVO"]
[182,"VII BJELOVARSKO-BILOGORSKA","ŠANDROVAC","PUPELICA",301353,"707/38",593,"ORANICA","ZAKUP","P3",null,null,"DIO K.Č., SUVLASNIŠTVO"]
[183,"VII BJELOVARSKO-BILOGORSKA","ŠANDROVAC","PUPELICA",301353,"707/6",3597,"ORANICA","ZAKUP","P3",null,null,"DIO K.Č., SUVLASNIŠTVO"]
[184,"VII BJELOVARSKO-BILOGORSKA","ŠANDROVAC","PUPELICA",301353,"708/2",1856,"ORANICA","ZAKUP","P3"]
[185,"VII BJELOVARSKO-BILOGORSKA","ŠANDROVAC","PUPELICA",301353,"718",4953,"ORANICA","ZAKUP","Š1/P3"]
[{"$f":"A188+1","v":186},"VII BJELOVARSKO-BILOGORSKA","ŠANDROVAC","PUPELICA",301353,"719",432,"VINOGRAD","ZAKUP","PŠ"]
[{"$f":"A189+1","v":187},"VII BJELOVARSKO-BILOGORSKA","ŠANDROVAC","PUPELICA",301353,"719",1557,"ORANICA","ZAKUP","PŠ"]
[{"$f":"A190+1","v":188},"VII BJELOVARSKO-BILOGORSKA","ŠANDROVAC","PUPELICA",301353,"822",1953,"ORANICA","ZAKUP","PŠ",null,null,"DIO K.Č., SUVLASNIŠTVO"]
[189,"VII BJELOVARSKO-BILOGORSKA","ŠANDROVAC","PUPELICA",301353,"823",928,"ORANICA","ZAKUP","PŠ/MN",null,null,"DIO U G.P., DIO K.Č., SUVLASNIŠTVO"]
[190,"VII BJELOVARSKO-BILOGORSKA","ŠANDROVAC","PUPELICA",301353,"83/5",2723,"LIVADA","ZAKUP","PŠ/P3"]
[191,"VII BJELOVARSKO-BILOGORSKA","ŠANDROVAC","PUPELICA",301353,"858/6",1942,"LIVADA","ZAKUP","Š1/PŠ"]
[192,"VII BJELOVARSKO-BILOGORSKA","ŠANDROVAC","PUPELICA",301353,"871",4395,"LIVADA","ZAKUP","V",null,null,"DIO K.Č., SUVLASNIŠTVO"]
[193,"VII BJELOVARSKO-BILOGORSKA","ŠANDROVAC","PUPELICA",301353,"881",6474,"ORANICA","ZAKUP","PŠ"]
[194,"VII BJELOVARSKO-BILOGORSKA","ŠANDROVAC","PUPELICA",301353,"881",2920,"LIVADA","ZAKUP","PŠ"]
[195,"VII BJELOVARSKO-BILOGORSKA","ŠANDROVAC","PUPELICA",301353,"883/10",1331,"ORANICA","ZAKUP","PŠ",null,null,"DIO K.Č., SUVLASNIŠTVO"]
[196,"VII BJELOVARSKO-BILOGORSKA","ŠANDROVAC","PUPELICA",301353,"883/6",7,"ORANICA","ZAKUP","PŠ"]
[197,"VII BJELOVARSKO-BILOGORSKA","ŠANDROVAC","PUPELICA",301353,"883/8",2180,"ORANICA","ZAKUP","PŠ"]
[198,"VII BJELOVARSKO-BILOGORSKA","ŠANDROVAC","PUPELICA",301353,"883/9",1942,"ORANICA","ZAKUP","PŠ",null,null,"DIO K.Č., SUVLASNIŠTVO"]
[199,"VII BJELOVARSKO-BILOGORSKA","ŠANDROVAC","PUPELICA",301353,"886/1",2654,"ORANICA","ZAKUP","Š1/PŠ"]
[200,"VII BJELOVARSKO-BILOGORSKA","ŠANDROVAC","PUPELICA",301353,"886/2",2654,"ORANICA","ZAKUP","PŠ"]
[201,"VII BJELOVARSKO-BILOGORSKA","ŠANDROVAC","PUPELICA",301353,"887/1",360,"VOĆNJAK","ZAKUP","PŠ"]
[202,"VII BJELOVARSKO-BILOGORSKA","ŠANDROVAC","PUPELICA",301353,"887/1",773,"VINOGRAD","ZAKUP","PŠ"]
[203,"VII BJELOVARSKO-BILOGORSKA","ŠANDROVAC","PUPELICA",301353,"888",3913,"ORANICA","ZAKUP","Š1/PŠ",null,null,"DIO K.Č., SUVLASNIŠTVO"]
[204,"VII BJELOVARSKO-BILOGORSKA","ŠANDROVAC","PUPELICA",301353,"901/3",2766,"ORANICA","ZAKUP","PŠ"]
[205,"VII BJELOVARSKO-BILOGORSKA","ŠANDROVAC","PUPELICA",301353,"902",662,"ORANICA","ZAKUP","PŠ"]
[206,"VII BJELOVARSKO-BILOGORSKA","ŠANDROVAC","PUPELICA",301353,"902",1079,"VINOGRAD","ZAKUP","PŠ"]
[207,"VII BJELOVARSKO-BILOGORSKA","ŠANDROVAC","PUPELICA",301353,"91/22",406,"ORANICA","ZAKUP","P3"]
[208,"VII BJELOVARSKO-BILOGORSKA","ŠANDROVAC","PUPELICA",301353,"931/2",7985,"ORANICA","ZAKUP","Š1/PŠ"]
[209,"VII BJELOVARSKO-BILOGORSKA","ŠANDROVAC","PUPELICA",301353,"95/4",993,"PAŠNJAK","ZAKUP","Š1/PŠ"]
[210,"VII BJELOVARSKO-BILOGORSKA","ŠANDROVAC","PUPELICA",301353,"95/4",719,"ORANICA","ZAKUP","Š1/PŠ"]
[211,"VII BJELOVARSKO-BILOGORSKA","ŠANDROVAC","PUPELICA",301353,"95/9",478,"PAŠNJAK","ZAKUP","PŠ"]
[212,"VII BJELOVARSKO-BILOGORSKA","ŠANDROVAC","RAVNEŠ",301370,"1051/2",460,"ORANICA","ZAKUP","P3"]
[213,"VII BJELOVARSKO-BILOGORSKA","ŠANDROVAC","RAVNEŠ",301370,"1059/2",457,"PAŠNJAK","ZAKUP","P3"]
[214,"VII BJELOVARSKO-BILOGORSKA","ŠANDROVAC","RAVNEŠ",301370,"1059/3",306,"ORANICA","ZAKUP","P3"]
[215,"VII BJELOVARSKO-BILOGORSKA","ŠANDROVAC","RAVNEŠ",301370,"116/4",978,"VINOGRAD","ZAKUP","P3"]
[216,"VII BJELOVARSKO-BILOGORSKA","ŠANDROVAC","RAVNEŠ",301370,"116/5",453,"VINOGRAD","ZAKUP","P3"]
[217,"VII BJELOVARSKO-BILOGORSKA","ŠANDROVAC","RAVNEŠ",301370,"117/4",1467,"ORANICA","ZAKUP","Š1/P3"]
[218,"VII BJELOVARSKO-BILOGORSKA","ŠANDROVAC","RAVNEŠ",301370,"117/5",665,"ORANICA","ZAKUP","Š1/P3"]
[219,"VII BJELOVARSKO-BILOGORSKA","ŠANDROVAC","RAVNEŠ",301370,"145/1",3715,"LIVADA","ZAKUP","PŠ",null,null,"DIO K.Č., SUVLASNIŠTVO"]
[220,"VII BJELOVARSKO-BILOGORSKA","ŠANDROVAC","RAVNEŠ",301370,"149",4197,"LIVADA","ZAKUP","PŠ"]
[221,"VII BJELOVARSKO-BILOGORSKA","ŠANDROVAC","RAVNEŠ",301370,"150/10",1108,"ORANICA","ZAKUP","PŠ",null,null,"DIO ŠUMA"]
[222,"VII BJELOVARSKO-BILOGORSKA","ŠANDROVAC","RAVNEŠ",301370,"150/7",374,"LIVADA","ZAKUP","PŠ"]
[223,"VII BJELOVARSKO-BILOGORSKA","ŠANDROVAC","RAVNEŠ",301370,"151/1",1985,"LIVADA","ZAKUP","PŠ"]
[224,"VII BJELOVARSKO-BILOGORSKA","ŠANDROVAC","RAVNEŠ",301370,"151/1",1798,"ORANICA","ZAKUP","PŠ"]
[225,"VII BJELOVARSKO-BILOGORSKA","ŠANDROVAC","RAVNEŠ",301370,"152",3424,"LIVADA","ZAKUP","PŠ"]
[226,"VII BJELOVARSKO-BILOGORSKA","ŠANDROVAC","RAVNEŠ",301370,"153",1683,"LIVADA","ZAKUP","PŠ"]
[227,"VII BJELOVARSKO-BILOGORSKA","ŠANDROVAC","RAVNEŠ",301370,"158/1",1381,"LIVADA","ZAKUP","PŠ"]
[228,"VII BJELOVARSKO-BILOGORSKA","ŠANDROVAC","RAVNEŠ",301370,"159/2",439,"LIVADA","ZAKUP","PŠ"]
[229,"VII BJELOVARSKO-BILOGORSKA","ŠANDROVAC","RAVNEŠ",301370,"160/2",2543,"LIVADA","PRODAJA","PŠ","PRIVREMENO KORIŠTENJE POLJOPRIVREDNOG ZEMLJIŠTA U VLASNIŠTVU RH","09/2022"]
[230,"VII BJELOVARSKO-BILOGORSKA","ŠANDROVAC","RAVNEŠ",301370,"167/3",1834,"LIVADA","ZAKUP","PŠ"]
[231,"VII BJELOVARSKO-BILOGORSKA","ŠANDROVAC","RAVNEŠ",301370,"178/3",2877,"LIVADA","PRODAJA","PŠ","PRIVREMENO KORIŠTENJE POLJOPRIVREDNOG ZEMLJIŠTA U VLASNIŠTVU RH","09/2022"]
[232,"VII BJELOVARSKO-BILOGORSKA","ŠANDROVAC","RAVNEŠ",301370,"187/2",1439,"ORANICA","ZAKUP","Š1/PŠ"]
[233,"VII BJELOVARSKO-BILOGORSKA","ŠANDROVAC","RAVNEŠ",301370,"187/23",317,"ORANICA","ZAKUP","Š1/PŠ"]
[234,"VII BJELOVARSKO-BILOGORSKA","ŠANDROVAC","RAVNEŠ",301370,"189/1",18423,"ORANICA","PRODAJA","PŠ/P3","PRIVREMENO KORIŠTENJE POLJOPRIVREDNOG ZEMLJIŠTA U VLASNIŠTVU RH","09/2022"]
[235,"VII BJELOVARSKO-BILOGORSKA","ŠANDROVAC","RAVNEŠ",301370,"245/21",522,"LIVADA","ZAKUP","PŠ"]
[236,"VII BJELOVARSKO-BILOGORSKA","ŠANDROVAC","RAVNEŠ",301370,"245/21",1439,"ORANICA","ZAKUP","PŠ"]
[237,"VII BJELOVARSKO-BILOGORSKA","ŠANDROVAC","RAVNEŠ",301370,"286/3",489,"VOĆNJAK","ZAKUP","P3"]
[238,"VII BJELOVARSKO-BILOGORSKA","ŠANDROVAC","RAVNEŠ",301370,"287/4",1931,"ORANICA","PRODAJA","P3","PRIVREMENO KORIŠTENJE POLJOPRIVREDNOG ZEMLJIŠTA U VLASNIŠTVU RH","2023-01-15"]
[239,"VII BJELOVARSKO-BILOGORSKA","ŠANDROVAC","RAVNEŠ",301370,"288/4",342,"LIVADA","ZAKUP","V"]
[240,"VII BJELOVARSKO-BILOGORSKA","ŠANDROVAC","RAVNEŠ",301370,"291",8414,"LIVADA","PRODAJA",null,"PRIVREMENO KORIŠTENJE POLJOPRIVREDNOG ZEMLJIŠTA U VLASNIŠTVU RH","09/2022"]
[241,"VII BJELOVARSKO-BILOGORSKA","ŠANDROVAC","RAVNEŠ",301370,"3",4435,"ORANICA","PRODAJA","P3","PRIVREMENO KORIŠTENJE POLJOPRIVREDNOG ZEMLJIŠTA U VLASNIŠTVU RH","09/2022"]
[242,"VII BJELOVARSKO-BILOGORSKA","ŠANDROVAC","RAVNEŠ",301370,"302/1",4143,"LIVADA","PRODAJA",null,"PRIVREMENO KORIŠTENJE POLJOPRIVREDNOG ZEMLJIŠTA U VLASNIŠTVU RH","2024-01-10"]
[243,"VII BJELOVARSKO-BILOGORSKA","ŠANDROVAC","RAVNEŠ",301370,"304",9054,"ORANICA","PRODAJA","V/P3","PRIVREMENO KORIŠTENJE POLJOPRIVREDNOG ZEMLJIŠTA U VLASNIŠTVU RH","09/2022"]
[{"$f":"A246+1","v":244},"VII BJELOVARSKO-BILOGORSKA","ŠANDROVAC","RAVNEŠ",301370,"307/2",633,"LIVADA","ZAKUP","V/P3"]
[{"$f":"A247+1","v":245},"VII BJELOVARSKO-BILOGORSKA","ŠANDROVAC","RAVNEŠ",301370,"307/2",1798,"ORANICA","ZAKUP","V/P3"]
[246,"VII BJELOVARSKO-BILOGORSKA","ŠANDROVAC","RAVNEŠ",301370,"308/13",8718,"ORANICA","PRODAJA",null,"PRIVREMENO KORIŠTENJE POLJOPRIVREDNOG ZEMLJIŠTA U VLASNIŠTVU RH","09/2022"]
[247,"VII BJELOVARSKO-BILOGORSKA","ŠANDROVAC","RAVNEŠ",301370,"308/22",8161,"ORANICA","ZAKUP","P3"]
[248,"VII BJELOVARSKO-BILOGORSKA","ŠANDROVAC","RAVNEŠ",301370,"308/24",1050,"ORANICA","ZAKUP","P3"]
[249,"VII BJELOVARSKO-BILOGORSKA","ŠANDROVAC","RAVNEŠ",301370,"309/3",3828,"ORANICA","PRODAJA",null,"PRIVREMENO KORIŠTENJE POLJOPRIVREDNOG ZEMLJIŠTA U VLASNIŠTVU RH","09/2022"]
[250,"VII BJELOVARSKO-BILOGORSKA","ŠANDROVAC","RAVNEŠ",301370,312,4125,"LIVADA","PRODAJA",null,"PRIVREMENO KORIŠTENJE POLJOPRIVREDNOG ZEMLJIŠTA U VLASNIŠTVU RH","24.04.2024"]
[251,"VII BJELOVARSKO-BILOGORSKA","ŠANDROVAC","RAVNEŠ",301370,"316/3",1266,"LIVADA","ZAKUP","V"]
[252,"VII BJELOVARSKO-BILOGORSKA","ŠANDROVAC","RAVNEŠ",301370,"317/3",1895,"LIVADA","ZAKUP","V"]
[253,"VII BJELOVARSKO-BILOGORSKA","ŠANDROVAC","RAVNEŠ",301370,"324",3661,"LIVADA","ZAKUP","V"]
[254,"VII BJELOVARSKO-BILOGORSKA","ŠANDROVAC","RAVNEŠ",301370,"327/1",5884,"LIVADA","PRODAJA",null,"PRIVREMENO KORIŠTENJE POLJOPRIVREDNOG ZEMLJIŠTA U VLASNIŠTVU RH","09/2022"]
[255,"VII BJELOVARSKO-BILOGORSKA","ŠANDROVAC","RAVNEŠ",301370,"332",5086,"LIVADA","PRODAJA",null,"PRIVREMENO KORIŠTENJE POLJOPRIVREDNOG ZEMLJIŠTA U VLASNIŠTVU RH","09/2022"]
[256,"VII BJELOVARSKO-BILOGORSKA","ŠANDROVAC","RAVNEŠ",301370,"389/1",482,"VOĆNJAK","ZAKUP","P3/MN",null,null,"DIO U G.P."]
[257,"VII BJELOVARSKO-BILOGORSKA","ŠANDROVAC","RAVNEŠ",301370,"390/1",1025,"VOĆNJAK","ZAKUP","P3"]
[258,"VII BJELOVARSKO-BILOGORSKA","ŠANDROVAC","RAVNEŠ",301370,"391/1",8416,"ORANICA","ZAKUP","P3","PRIVREMENO KORIŠTENJE POLJOPRIVREDNOG ZEMLJIŠTA U VLASNIŠTVU RH","2023-01-01"]
[259,"VII BJELOVARSKO-BILOGORSKA","ŠANDROVAC","RAVNEŠ",301370,"391/4",4676,"ORANICA","PRODAJA","P3","PRIVREMENO KORIŠTENJE POLJOPRIVREDNOG ZEMLJIŠTA U VLASNIŠTVU RH","2023-01-15"]
[260,"VII BJELOVARSKO-BILOGORSKA","ŠANDROVAC","RAVNEŠ",301370,"410",921,"LIVADA","ZAKUP","PŠ"]
[261,"VII BJELOVARSKO-BILOGORSKA","ŠANDROVAC","RAVNEŠ",301370,"429",1334,"ORANICA","ZAKUP","PŠ"]
[262,"VII BJELOVARSKO-BILOGORSKA","ŠANDROVAC","RAVNEŠ",301370,"474",4600,"LIVADA","PRODAJA","PŠ","PRIVREMENO KORIŠTENJE POLJOPRIVREDNOG ZEMLJIŠTA U VLASNIŠTVU RH","2023-01-15"]
[263,"VII BJELOVARSKO-BILOGORSKA","ŠANDROVAC","RAVNEŠ",301370,"475/1",1568,"ORANICA","ZAKUP","P3"]
[264,"VII BJELOVARSKO-BILOGORSKA","ŠANDROVAC","RAVNEŠ",301370,"485/2",4766,"ORANICA","ZAKUP","P3"]
[265,"VII BJELOVARSKO-BILOGORSKA","ŠANDROVAC","RAVNEŠ",301370,"489/2",216,"ORANICA","PRODAJA","P3","PRIVREMENO KORIŠTENJE POLJOPRIVREDNOG ZEMLJIŠTA U VLASNIŠTVU RH","2024-01-10"]
[266,"VII BJELOVARSKO-BILOGORSKA","ŠANDROVAC","RAVNEŠ",301370,"495/2",3277,"ORANICA","PRODAJA","P3","PRIVREMENO KORIŠTENJE POLJOPRIVREDNOG ZEMLJIŠTA U VLASNIŠTVU RH","2024-01-10"]
[267,"VII BJELOVARSKO-BILOGORSKA","ŠANDROVAC","RAVNEŠ",301370,"497/1",9585,"ORANICA","PRODAJA","P3","PRIVREMENO KORIŠTENJE POLJOPRIVREDNOG ZEMLJIŠTA U VLASNIŠTVU RH","09/2022"]
[268,"VII BJELOVARSKO-BILOGORSKA","ŠANDROVAC","RAVNEŠ",301370,"498/1",8251,"ORANICA","PRODAJA","P3","PRIVREMENO KORIŠTENJE POLJOPRIVREDNOG ZEMLJIŠTA U VLASNIŠTVU RH","09/2022"]
[269,"VII BJELOVARSKO-BILOGORSKA","ŠANDROVAC","RAVNEŠ",301370,"499/1",539,"ORANICA","PRODAJA","P3","PRIVREMENO KORIŠTENJE POLJOPRIVREDNOG ZEMLJIŠTA U VLASNIŠTVU RH","2024-01-10"]
[270,"VII BJELOVARSKO-BILOGORSKA","ŠANDROVAC","RAVNEŠ",301370,"504/1",4881,"ORANICA","PRODAJA","P3","PRIVREMENO KORIŠTENJE POLJOPRIVREDNOG ZEMLJIŠTA U VLASNIŠTVU RH","09/2022"]
[271,"VII BJELOVARSKO-BILOGORSKA","ŠANDROVAC","RAVNEŠ",301370,"508/2",3816,"ORANICA","PRODAJA","P3","PRIVREMENO KORIŠTENJE POLJOPRIVREDNOG ZEMLJIŠTA U VLASNIŠTVU RH","09/2022"]
[272,"VII BJELOVARSKO-BILOGORSKA","ŠANDROVAC","RAVNEŠ",301370,"509/2",514,"ORANICA","ZAKUP","P3"]
[273,"VII BJELOVARSKO-BILOGORSKA","ŠANDROVAC","RAVNEŠ",301370,"509/3",453,"ORANICA","ZAKUP","P3"]
[274,"VII BJELOVARSKO-BILOGORSKA","ŠANDROVAC","RAVNEŠ",301370,"512",1144,"ORANICA","ZAKUP","P3"]
[275,"VII BJELOVARSKO-BILOGORSKA","ŠANDROVAC","RAVNEŠ",301370,"513/1",11114,"ORANICA","PRODAJA","P3","PRIVREMENO KORIŠTENJE POLJOPRIVREDNOG ZEMLJIŠTA U VLASNIŠTVU RH","09/2022"]
[276,"VII BJELOVARSKO-BILOGORSKA","ŠANDROVAC","RAVNEŠ",301370,"514/2",10322,"ORANICA","PRODAJA","P3","PRIVREMENO KORIŠTENJE POLJOPRIVREDNOG ZEMLJIŠTA U VLASNIŠTVU RH","09/2022"]
[277,"VII BJELOVARSKO-BILOGORSKA","ŠANDROVAC","RAVNEŠ",301370,"517/80",1716,"LIVADA","ZAKUP","Š1","ZAKUP","09.12.2045."]
[278,"VII BJELOVARSKO-BILOGORSKA","ŠANDROVAC","RAVNEŠ",301370,"526/3",223,"LIVADA","ZAKUP","Š1","ZAKUP","09.12.2045."]
[279,"VII BJELOVARSKO-BILOGORSKA","ŠANDROVAC","RAVNEŠ",301370,"530/1",5431,"ORANICA","ZAKUP","P3/MN","ZAKUP","09.12.2045.","DIO U G.P."]
[280,"VII BJELOVARSKO-BILOGORSKA","ŠANDROVAC","RAVNEŠ",301370,"535/1",3960,"LIVADA","ZAKUP","Š1/P3","ZAKUP","09.12.2045."]
[281,"VII BJELOVARSKO-BILOGORSKA","ŠANDROVAC","RAVNEŠ",301370,"535/1",1439,"ORANICA","ZAKUP","Š1/P3","ZAKUP","09.12.2045."]
[282,"VII BJELOVARSKO-BILOGORSKA","ŠANDROVAC","RAVNEŠ",301370,"538/2",4004,"LIVADA","PRODAJA","P3","PRIVREMENO KORIŠTENJE POLJOPRIVREDNOG ZEMLJIŠTA U VLASNIŠTVU RH","2024-01-10"]
[283,"VII BJELOVARSKO-BILOGORSKA","ŠANDROVAC","RAVNEŠ",301370,"538/2",8075,"ORANICA","PRODAJA","P3","PRIVREMENO KORIŠTENJE POLJOPRIVREDNOG ZEMLJIŠTA U VLASNIŠTVU RH","2024-01-10"]
[284,"VII BJELOVARSKO-BILOGORSKA","ŠANDROVAC","RAVNEŠ",301370,"577/1",1844,"ORANICA","PRODAJA","P3","PRIVREMENO KORIŠTENJE POLJOPRIVREDNOG ZEMLJIŠTA U VLASNIŠTVU RH","2024-01-10"]
[285,"VII BJELOVARSKO-BILOGORSKA","ŠANDROVAC","RAVNEŠ",301370,"578/1",1403,"ORANICA","PRODAJA","P3","PRIVREMENO KORIŠTENJE POLJOPRIVREDNOG ZEMLJIŠTA U VLASNIŠTVU RH","2024-01-10"]
[286,"VII BJELOVARSKO-BILOGORSKA","ŠANDROVAC","RAVNEŠ",301370,"594/4",2021,"ORANICA","ZAKUP","P3","ZAKUP","09.12.2045."]
[287,"VII BJELOVARSKO-BILOGORSKA","ŠANDROVAC","RAVNEŠ",301370,"600/1",2417,"LIVADA","ZAKUP","P3","PRIVREMENO KORIŠTENJE POLJOPRIVREDNOG ZEMLJIŠTA U VLASNIŠTVU RH","09/2022"]
[288,"VII BJELOVARSKO-BILOGORSKA","ŠANDROVAC","RAVNEŠ",301370,"600/1",3956,"ORANICA","ZAKUP","P3","PRIVREMENO KORIŠTENJE POLJOPRIVREDNOG ZEMLJIŠTA U VLASNIŠTVU RH","09/2022"]
[289,"VII BJELOVARSKO-BILOGORSKA","ŠANDROVAC","RAVNEŠ",301370,"601/2",1496,"ORANICA","PRODAJA","P3","PRIVREMENO KORIŠTENJE POLJOPRIVREDNOG ZEMLJIŠTA U VLASNIŠTVU RH","2024-01-10"]
[290,"VII BJELOVARSKO-BILOGORSKA","ŠANDROVAC","RAVNEŠ",301370,"602/3",101,"ORANICA","ZAKUP","P3","ZAKUP","09.12.2045.","DIO K.Č., SUVLASNIŠTVO"]
[291,"VII BJELOVARSKO-BILOGORSKA","ŠANDROVAC","RAVNEŠ",301370,"603",2385,"ORANICA","PRODAJA","P3","PRIVREMENO KORIŠTENJE POLJOPRIVREDNOG ZEMLJIŠTA U VLASNIŠTVU RH","2024-01-10"]
[292,"VII BJELOVARSKO-BILOGORSKA","ŠANDROVAC","RAVNEŠ",301370,"609/2",2683,"LIVADA","PRODAJA","P3","PRIVREMENO KORIŠTENJE POLJOPRIVREDNOG ZEMLJIŠTA U VLASNIŠTVU RH","2024-01-10"]
[293,"VII BJELOVARSKO-BILOGORSKA","ŠANDROVAC","RAVNEŠ",301370,"609/2",10790,"ORANICA","PRODAJA","P3","PRIVREMENO KORIŠTENJE POLJOPRIVREDNOG ZEMLJIŠTA U VLASNIŠTVU RH","2024-01-10"]
[294,"VII BJELOVARSKO-BILOGORSKA","ŠANDROVAC","RAVNEŠ",301370,"613/7",2198,"ORANICA","ZAKUP","P3"]
[{"$f":"A297+1","v":295},"VII BJELOVARSKO-BILOGORSKA","ŠANDROVAC","RAVNEŠ",301370,"621/1",3187,"ORANICA","PRODAJA","P3","PRIVREMENO KORIŠTENJE POLJOPRIVREDNOG ZEMLJIŠTA U VLASNIŠTVU RH","2024-01-10"]
[296,"VII BJELOVARSKO-BILOGORSKA","ŠANDROVAC","RAVNEŠ",301370,"633",7204,"ORANICA","ZAKUP","P3","ZAKUP","09.12.2045.","DIO K.Č., SUVLASNIŠTVO"]
[297,"VII BJELOVARSKO-BILOGORSKA","ŠANDROVAC","RAVNEŠ",301370,"636/1",15890,"ORANICA","PRODAJA","P3","PRIVREMENO KORIŠTENJE POLJOPRIVREDNOG ZEMLJIŠTA U VLASNIŠTVU RH","2024-01-10"]
[298,"VII BJELOVARSKO-BILOGORSKA","ŠANDROVAC","RAVNEŠ",301370,"660/2",4172,"ORANICA","PRODAJA","P3","PRIVREMENO KORIŠTENJE POLJOPRIVREDNOG ZEMLJIŠTA U VLASNIŠTVU RH","2024-01-10"]
[299,"VII BJELOVARSKO-BILOGORSKA","ŠANDROVAC","RAVNEŠ",301370,"661",13092,"ORANICA","PRODAJA","P3","PRIVREMENO KORIŠTENJE POLJOPRIVREDNOG ZEMLJIŠTA U VLASNIŠTVU RH","2024-01-10"]
[300,"VII BJELOVARSKO-BILOGORSKA","ŠANDROVAC","RAVNEŠ",301370,"662/2",10110,"ORANICA","ZAKUP","P3","ZAKUP","11.12.2045."]
[301,"VII BJELOVARSKO-BILOGORSKA","ŠANDROVAC","RAVNEŠ",301370,"664/1",5568,"ORANICA","ZAKUP","P3","ZAKUP","09.12.2045.","DIO K.Č., SUVLASNIŠTVO"]
[302,"VII BJELOVARSKO-BILOGORSKA","ŠANDROVAC","RAVNEŠ",301370,"665/1",6909,"ORANICA","ZAKUP","P3","ZAKUP","11.12.2045.","DIO K.Č., SUVLASNIŠTVO"]
[303,"VII BJELOVARSKO-BILOGORSKA","ŠANDROVAC","RAVNEŠ",301370,"665/2",1859,"ORANICA","ZAKUP","P3","ZAKUP","11.12.2045.","DIO K.Č., SUVLASNIŠTVO"]
[304,"VII BJELOVARSKO-BILOGORSKA","ŠANDROVAC","RAVNEŠ",301370,"674/2",3266,"ORANICA","PRODAJA","P3","PRIVREMENO KORIŠTENJE POLJOPRIVREDNOG ZEMLJIŠTA U VLASNIŠTVU RH","09/2022"]
[305,"VII BJELOVARSKO-BILOGORSKA","ŠANDROVAC","RAVNEŠ",301370,"674/8",1212,"ORANICA","ZAKUP","P3"]
[306,"VII BJELOVARSKO-BILOGORSKA","ŠANDROVAC","RAVNEŠ",301370,"678/1",129,"ORANICA","ZAKUP","P3"]
[307,"VII BJELOVARSKO-BILOGORSKA","ŠANDROVAC","RAVNEŠ",301370,"678/14",816,"LIVADA","ZAKUP","P3"]
[308,"VII BJELOVARSKO-BILOGORSKA","ŠANDROVAC","RAVNEŠ",301370,"678/15",809,"LIVADA","ZAKUP","P3",null,null,"DIO K.Č., SUVLASNIŠTVO"]
[309,"VII BJELOVARSKO-BILOGORSKA","ŠANDROVAC","RAVNEŠ",301370,"68/30",3956,"ORANICA","ZAKUP","Š1/P3"]
[310,"VII BJELOVARSKO-BILOGORSKA","ŠANDROVAC","RAVNEŠ",301370,"69/34",13122,"ORANICA","ZAKUP","Š1/PŠ"]
[311,"VII BJELOVARSKO-BILOGORSKA","ŠANDROVAC","RAVNEŠ",301370,"70/22",2194,"ORANICA","ZAKUP","PŠ"]
[312,"VII BJELOVARSKO-BILOGORSKA","ŠANDROVAC","RAVNEŠ",301370,"70/22",15126,"VOĆNJAK","ZAKUP","PŠ"]
[313,"VII BJELOVARSKO-BILOGORSKA","ŠANDROVAC","RAVNEŠ",301370,"70/69",4302,"ORANICA","ZAKUP","PŠ"]
[314,"VII BJELOVARSKO-BILOGORSKA","ŠANDROVAC","RAVNEŠ",301370,"70/71",342,"LIVADA","ZAKUP","PŠ"]
[315,"VII BJELOVARSKO-BILOGORSKA","ŠANDROVAC","RAVNEŠ",301370,"753/3",1165,"LIVADA","PRODAJA",null,"PRIVREMENO KORIŠTENJE POLJOPRIVREDNOG ZEMLJIŠTA U VLASNIŠTVU RH","04.24.2024"]
[316,"VII BJELOVARSKO-BILOGORSKA","ŠANDROVAC","RAVNEŠ",301370,"756",511,"VOĆNJAK","PRODAJA","P3"]
[317,"VII BJELOVARSKO-BILOGORSKA","ŠANDROVAC","RAVNEŠ",301370,"756",511,"ORANICA","PRODAJA","P3","PRIVREMENO KORIŠTENJE POLJOPRIVREDNOG ZEMLJIŠTA U VLASNIŠTVU RH","09/2022"]
[318,"VII BJELOVARSKO-BILOGORSKA","ŠANDROVAC","RAVNEŠ",301370,"759/3",2234,"ORANICA","PRODAJA","P3","PRIVREMENO KORIŠTENJE POLJOPRIVREDNOG ZEMLJIŠTA U VLASNIŠTVU RH","09/2022"]
[319,"VII BJELOVARSKO-BILOGORSKA","ŠANDROVAC","RAVNEŠ",301370,"759/4",7848,"ORANICA","PRODAJA","P3","PRIVREMENO KORIŠTENJE POLJOPRIVREDNOG ZEMLJIŠTA U VLASNIŠTVU RH","09/2022"]
[320,"VII BJELOVARSKO-BILOGORSKA","ŠANDROVAC","RAVNEŠ",301370,"760/13",2072,"ORANICA","ZAKUP","V/P3",null,null,"DIO K.Č., SUVLASNIŠTVO"]
[321,"VII BJELOVARSKO-BILOGORSKA","ŠANDROVAC","RAVNEŠ",301370,"760/14",5604,"ORANICA","ZAKUP","V/P3","ZAKUP","11.12.2045.","DIO K.Č., SUVLASNIŠTVO"]
[322,"VII BJELOVARSKO-BILOGORSKA","ŠANDROVAC","RAVNEŠ",301370,"760/24",5305,"LIVADA","ZAKUP","PŠ/P3"]
[323,"VII BJELOVARSKO-BILOGORSKA","ŠANDROVAC","RAVNEŠ",301370,"760/25",2492,"ORANICA","ZAKUP","PŠ/P3"]
[324,"VII BJELOVARSKO-BILOGORSKA","ŠANDROVAC","RAVNEŠ",301370,"760/32",2115,"ORANICA","PRODAJA","V/P3","PRIVREMENO KORIŠTENJE POLJOPRIVREDNOG ZEMLJIŠTA U VLASNIŠTVU RH","09/2022"]
[325,"VII BJELOVARSKO-BILOGORSKA","ŠANDROVAC","RAVNEŠ",301370,"760/43",1654,"ORANICA","PRODAJA",null,"PRIVREMENO KORIŠTENJE POLJOPRIVREDNOG ZEMLJIŠTA U VLASNIŠTVU RH","09/2022"]
[326,"VII BJELOVARSKO-BILOGORSKA","ŠANDROVAC","RAVNEŠ",301370,"785",4776,"ORANICA","PRODAJA",null,"PRIVREMENO KORIŠTENJE POLJOPRIVREDNOG ZEMLJIŠTA U VLASNIŠTVU RH","09/2022"]
[327,"VII BJELOVARSKO-BILOGORSKA","ŠANDROVAC","RAVNEŠ",301370,"816/3",4068,"LIVADA","ZAKUP","PŠ/P3","ZAKUP","11.12.2045."]
[328,"VII BJELOVARSKO-BILOGORSKA","ŠANDROVAC","RAVNEŠ",301370,"845/11",5755,"LIVADA","ZAKUP","PŠ"]
[329,"VII BJELOVARSKO-BILOGORSKA","ŠANDROVAC","RAVNEŠ",301370,"845/8",5765,"LIVADA","ZAKUP","PŠ"]
[330,"VII BJELOVARSKO-BILOGORSKA","ŠANDROVAC","RAVNEŠ",301370,"847/1",5488,"LIVADA","PRODAJA","PŠ","PRIVREMENO KORIŠTENJE POLJOPRIVREDNOG ZEMLJIŠTA U VLASNIŠTVU RH","20.04.2024"]
[331,"VII BJELOVARSKO-BILOGORSKA","ŠANDROVAC","RAVNEŠ",301370,"859/1",11209,"ORANICA","ZAKUP","PŠ/P3","PRIVREMENO KORIŠTENJE POLJOPRIVREDNOG ZEMLJIŠTA U VLASNIŠTVU RH","24.03.2024"]
[332,"VII BJELOVARSKO-BILOGORSKA","ŠANDROVAC","RAVNEŠ",301370,"860/4",216,"ORANICA","ZAKUP","P3"]
[333,"VII BJELOVARSKO-BILOGORSKA","ŠANDROVAC","RAVNEŠ",301370,"860/8",396,"ORANICA","ZAKUP","P3"]
[334,"VII BJELOVARSKO-BILOGORSKA","ŠANDROVAC","RAVNEŠ",301370,"864",3226,"LIVADA","ZAKUP","PŠ","PRIVREMENO KORIŠTENJE POLJOPRIVREDNOG ZEMLJIŠTA U VLASNIŠTVU RH","22.03.2024"]
[335,"VII BJELOVARSKO-BILOGORSKA","ŠANDROVAC","RAVNEŠ",301370,"866/1",7557,"ORANICA","PRODAJA","P3","PRIVREMENO KORIŠTENJE POLJOPRIVREDNOG ZEMLJIŠTA U VLASNIŠTVU RH","09/2022 "]
[336,"VII BJELOVARSKO-BILOGORSKA","ŠANDROVAC","RAVNEŠ",301370,"867/2",3697,"LIVADA","ZAKUP","P3"]
[337,"VII BJELOVARSKO-BILOGORSKA","ŠANDROVAC","RAVNEŠ",301370,"872",3079,"ORANICA","ZAKUP","P3"]
[338,"VII BJELOVARSKO-BILOGORSKA","ŠANDROVAC","RAVNEŠ",301370,"881/1",126,"LIVADA","ZAKUP","P3"]
[339,"VII BJELOVARSKO-BILOGORSKA","ŠANDROVAC","RAVNEŠ",301370,"883",450,"LIVADA","ZAKUP","P3"]
[340,"VII BJELOVARSKO-BILOGORSKA","ŠANDROVAC","RAVNEŠ",301370,"885/2",21299,"ORANICA","ZAKUP","P3","ZAKUP","11.12.2045."]
[341,"VII BJELOVARSKO-BILOGORSKA","ŠANDROVAC","RAVNEŠ",301370,"887/1",3028,"ORANICA","PRODAJA",null,"PRIVREMENO KORIŠTENJE POLJOPRIVREDNOG ZEMLJIŠTA U VLASNIŠTVU RH","09/2022"]
[342,"VII BJELOVARSKO-BILOGORSKA","ŠANDROVAC","RAVNEŠ",301370,"888/1",6287,"ORANICA","PRODAJA",null,"PRIVREMENO KORIŠTENJE POLJOPRIVREDNOG ZEMLJIŠTA U VLASNIŠTVU RH","09/2022"]
[343,"VII BJELOVARSKO-BILOGORSKA","ŠANDROVAC","RAVNEŠ",301370,"903/3",1237,"LIVADA","ZAKUP","PŠ"]
[344,"VII BJELOVARSKO-BILOGORSKA","ŠANDROVAC","RAVNEŠ",301370,"993/2",6308,"LIVADA","ZAKUP","PŠ","PRIVREMENO KORIŠTENJE POLJOPRIVREDNOG ZEMLJIŠTA U VLASNIŠTVU RH","03.30.2024"]
[345,"VII BJELOVARSKO-BILOGORSKA","ŠANDROVAC","ŠANDROVAC",301442,"1005/3",1597,"ORANICA","ZAKUP","PŠ"]
[346,"VII BJELOVARSKO-BILOGORSKA","ŠANDROVAC","ŠANDROVAC",301442,"1005/4",1108,"LIVADA","ZAKUP","PŠ"]
[347,"VII BJELOVARSKO-BILOGORSKA","ŠANDROVAC","ŠANDROVAC",301442,"1006",2769,"ORANICA","ZAKUP","PŠ"]
[348,"VII BJELOVARSKO-BILOGORSKA","ŠANDROVAC","ŠANDROVAC",301442,"1008/6",1223,"ORANICA","ZAKUP","PŠ"]
[349,"VII BJELOVARSKO-BILOGORSKA","ŠANDROVAC","ŠANDROVAC",301442,"1009/1",809,"LIVADA","ZAKUP","PŠ"]
[350,"VII BJELOVARSKO-BILOGORSKA","ŠANDROVAC","ŠANDROVAC",301442,"1009/5",432,"LIVADA","ZAKUP","PŠ"]
[351,"VII BJELOVARSKO-BILOGORSKA","ŠANDROVAC","ŠANDROVAC",301442,"1032/2",4190,"ORANICA","PRODAJA","PŠ","PRIVREMENO KORIŠTENJE POLJOPRIVREDNOG ZEMLJIŠTA U VLASNIŠTVU RH","2023-01-15"]
[352,"VII BJELOVARSKO-BILOGORSKA","ŠANDROVAC","ŠANDROVAC",301442,"1061/2",1680,"LIVADA","ZAKUP","PŠ"]
[353,"VII BJELOVARSKO-BILOGORSKA","ŠANDROVAC","ŠANDROVAC",301442,"1119/4",3261,"ORANICA","ZAKUP"]
[354,"VII BJELOVARSKO-BILOGORSKA","ŠANDROVAC","ŠANDROVAC",301442,"1149",4079,"ORANICA","PRODAJA","P3","PRIVREMENO KORIŠTENJE POLJOPRIVREDNOG ZEMLJIŠTA U VLASNIŠTVU RH","2023-01-10"]
[355,"VII BJELOVARSKO-BILOGORSKA","ŠANDROVAC","ŠANDROVAC",301442,"1154/28",655,"LIVADA","ZAKUP"]
[356,"VII BJELOVARSKO-BILOGORSKA","ŠANDROVAC","ŠANDROVAC",301442,"1182",1108,"ORANICA","ZAKUP","P3"]
[357,"VII BJELOVARSKO-BILOGORSKA","ŠANDROVAC","ŠANDROVAC",301442,1183,2216,"ORANICA","ZAKUP",null,null,null,"DIO K.Č., SUVLASNIŠTVO"]
[358,"VII BJELOVARSKO-BILOGORSKA","ŠANDROVAC","ŠANDROVAC",301442,"1184",2356,"LIVADA","ZAKUP","P3"]
[{"$f":"A361+1","v":359},"VII BJELOVARSKO-BILOGORSKA","ŠANDROVAC","ŠANDROVAC",301442,"1187/8",1568,"LIVADA","ZAKUP"]
[{"$f":"A362+1","v":360},"VII BJELOVARSKO-BILOGORSKA","ŠANDROVAC","ŠANDROVAC",301442,"119",1295,"ORANICA","ZAKUP","Š1/P3"]
[{"$f":"A363+1","v":361},"VII BJELOVARSKO-BILOGORSKA","ŠANDROVAC","ŠANDROVAC",301442,122,2640,"ORANICA","ZAKUP",null,null,null,"DIO K.Č., SUVLASNIŠTVO"]
[{"$f":"A364+1","v":362},"VII BJELOVARSKO-BILOGORSKA","ŠANDROVAC","ŠANDROVAC",301442,"123/1",719,"LIVADA","ZAKUP","P3"]
[363,"VII BJELOVARSKO-BILOGORSKA","ŠANDROVAC","ŠANDROVAC",301442,"123/1",762,"ORANICA","ZAKUP","P3"]
[364,"VII BJELOVARSKO-BILOGORSKA","ŠANDROVAC","ŠANDROVAC",301442,"123/2",1079,"ORANICA","ZAKUP","P3"]
[365,"VII BJELOVARSKO-BILOGORSKA","ŠANDROVAC","ŠANDROVAC",301442,"123/2",403,"LIVADA","ZAKUP","P3"]
[366,"VII BJELOVARSKO-BILOGORSKA","ŠANDROVAC","ŠANDROVAC",301442,"1247/2",745,"LIVADA","ZAKUP",null,null,null,"DIO K.Č., SUVLASNIŠTVO"]
[367,"VII BJELOVARSKO-BILOGORSKA","ŠANDROVAC","ŠANDROVAC",301442,"1255/2",798,"LIVADA","ZAKUP",null,null,null,"DIO K.Č., SUVLASNIŠTVO"]
[368,"VII BJELOVARSKO-BILOGORSKA","ŠANDROVAC","ŠANDROVAC",301442,"1260/3",2046,"LIVADA","ZAKUP","PŠ"]
[369,"VII BJELOVARSKO-BILOGORSKA","ŠANDROVAC","ŠANDROVAC",301442,"1261/3",1439,"VINOGRAD","ZAKUP","PŠ"]
[370,"VII BJELOVARSKO-BILOGORSKA","ŠANDROVAC","ŠANDROVAC",301442,"1261/3",284,"ORANICA","ZAKUP","PŠ"]
[371,"VII BJELOVARSKO-BILOGORSKA","ŠANDROVAC","ŠANDROVAC",301442,"128/47",3237,"ORANICA","ZAKUP","PŠ"]
[372,"VII BJELOVARSKO-BILOGORSKA","ŠANDROVAC","ŠANDROVAC",301442,"128/47",3039,"LIVADA","ZAKUP","PŠ"]
[373,"VII BJELOVARSKO-BILOGORSKA","ŠANDROVAC","ŠANDROVAC",301442,"129/12",575,"LIVADA","ZAKUP","Š1/PŠ"]
[374,"VII BJELOVARSKO-BILOGORSKA","ŠANDROVAC","ŠANDROVAC",301442,"1302/2",942,"LIVADA","ZAKUP",null,null,null,"DIO K.Č., SUVLASNIŠTVO"]
[375,"VII BJELOVARSKO-BILOGORSKA","ŠANDROVAC","ŠANDROVAC",301442,"1303/2",1716,"ORANICA","ZAKUP",null,null,null,"DIO K.Č., SUVLASNIŠTVO"]
[376,"VII BJELOVARSKO-BILOGORSKA","ŠANDROVAC","ŠANDROVAC",301442,"1339/2",820,"LIVADA","ZAKUP","MN/P3",null,null,"DIO U G.P."]
[377,"VII BJELOVARSKO-BILOGORSKA","ŠANDROVAC","ŠANDROVAC",301442,"1/35",2575,"LIVADA","ZAKUP"]
[378,"VII BJELOVARSKO-BILOGORSKA","ŠANDROVAC","ŠANDROVAC",301442,"1355/5",126,"LIVADA","ZAKUP"]
[379,"VII BJELOVARSKO-BILOGORSKA","ŠANDROVAC","ŠANDROVAC",301442,"1357",1761,"ORANICA","ZAKUP","P3","PRIVREMENO KORIŠTENJE POLJOPRIVREDNOG ZEMLJIŠTA U VLASNIŠTVU RH","09/2022"]
[380,"VII BJELOVARSKO-BILOGORSKA","ŠANDROVAC","ŠANDROVAC",301442,"1358/1",6798,"ORANICA","ZEMLJIŠTE ODREĐENO ZA POVRAT  ","P3","PRIVREMENO KORIŠTENJE POLJOPRIVREDNOG ZEMLJIŠTA U VLASNIŠTVU RH","09/2022"]
[381,"VII BJELOVARSKO-BILOGORSKA","ŠANDROVAC","ŠANDROVAC",301442,"1358/3",577,"LIVADA","ZAKUP"]
[382,"VII BJELOVARSKO-BILOGORSKA","ŠANDROVAC","ŠANDROVAC",301442,"1/36",2172,"LIVADA","ZAKUP"]
[383,"VII BJELOVARSKO-BILOGORSKA","ŠANDROVAC","ŠANDROVAC",301442,"1/37",1331,"LIVADA","ZAKUP"]
[384,"VII BJELOVARSKO-BILOGORSKA","ŠANDROVAC","ŠANDROVAC",301442,"1410/2",227,"LIVADA","ZAKUP","PŠ"]
[385,"VII BJELOVARSKO-BILOGORSKA","ŠANDROVAC","ŠANDROVAC",301442,"14/2",1057,"LIVADA","ZAKUP","P3/MN",null,null,"DIO U G.P."]
[386,"VII BJELOVARSKO-BILOGORSKA","ŠANDROVAC","ŠANDROVAC",301442,"142/20",12013,"LIVADA","PRODAJA","Š1/PŠ","PRIVREMENO KORIŠTENJE POLJOPRIVREDNOG ZEMLJIŠTA U VLASNIŠTVU RH","2022-07-26"]
[387,"VII BJELOVARSKO-BILOGORSKA","ŠANDROVAC","ŠANDROVAC",301442,"142/26",1259,"LIVADA","ZAKUP","Š1/PŠ"]
[388,"VII BJELOVARSKO-BILOGORSKA","ŠANDROVAC","ŠANDROVAC",301442,"142/26",4676,"ORANICA","ZAKUP","Š1/PŠ"]
[389,"VII BJELOVARSKO-BILOGORSKA","ŠANDROVAC","ŠANDROVAC",301442,"142/39",2349,"ORANICA","ZAKUP","PŠ","ZAKUP","09.12.2045."]
[390,"VII BJELOVARSKO-BILOGORSKA","ŠANDROVAC","ŠANDROVAC",301442,"142/79",137,"LIVADA","ZAKUP","PŠ"]
[391,"VII BJELOVARSKO-BILOGORSKA","ŠANDROVAC","ŠANDROVAC",301442,"142/8",1320,"LIVADA","ZAKUP","PŠ"]
[392,"VII BJELOVARSKO-BILOGORSKA","ŠANDROVAC","ŠANDROVAC",301442,"1/46",741,"LIVADA","ZAKUP"]
[393,"VII BJELOVARSKO-BILOGORSKA","ŠANDROVAC","ŠANDROVAC",301442,"146/1",2724,"PAŠNJAK","PRODAJA","PŠ","PRIVREMENO KORIŠTENJE POLJOPRIVREDNOG ZEMLJIŠTA U VLASNIŠTVU RH","2024-03-22"]
[394,"VII BJELOVARSKO-BILOGORSKA","ŠANDROVAC","ŠANDROVAC",301442,"1469/8",460,"LIVADA","ZAKUP"]
[395,"VII BJELOVARSKO-BILOGORSKA","ŠANDROVAC","ŠANDROVAC",301442,"1469/9",403,"LIVADA","ZAKUP"]
[396,"VII BJELOVARSKO-BILOGORSKA","ŠANDROVAC","ŠANDROVAC",301442,"1469/11",403,"LIVADA","ZAKUP"]
[397,"VII BJELOVARSKO-BILOGORSKA","ŠANDROVAC","ŠANDROVAC",301442,"147",9902,"PAŠNJAK","PRODAJA","PŠ","PRIVREMENO KORIŠTENJE POLJOPRIVREDNOG ZEMLJIŠTA U VLASNIŠTVU RH","2024-03-22"]
[398,"VII BJELOVARSKO-BILOGORSKA","ŠANDROVAC","ŠANDROVAC",301442,"1485/2",115,"LIVADA","ZAKUP","PŠ"]
[399,"VII BJELOVARSKO-BILOGORSKA","ŠANDROVAC","ŠANDROVAC",301442,"161/20",1298,"LIVADA","ZAKUP","P3"]
[400,"VII BJELOVARSKO-BILOGORSKA","ŠANDROVAC","ŠANDROVAC",301442,"1645/3",209,"LIVADA","ZAKUP","PŠ"]
[401,"VII BJELOVARSKO-BILOGORSKA","ŠANDROVAC","ŠANDROVAC",301442,"1684/1",2413,"ORANICA","ZEMLJIŠTE ODREĐENO ZA POVRAT  ","P3"]
[402,"VII BJELOVARSKO-BILOGORSKA","ŠANDROVAC","ŠANDROVAC",301442,"1684/2",4525,"ORANICA","ZEMLJIŠTE ODREĐENO ZA POVRAT  ","P3"]
[403,"VII BJELOVARSKO-BILOGORSKA","ŠANDROVAC","ŠANDROVAC",301442,"171/3",475,"ORANICA","ZAKUP","PŠ"]
[404,"VII BJELOVARSKO-BILOGORSKA","ŠANDROVAC","ŠANDROVAC",301442,"171/35",5870,"PAŠNJAK","ZAKUP","Š1/PŠ",null,null,"U IZK - DRUŠTVENO VLASNIŠTVO, KORISNIK GR. BJELOVAR"]
[405,"VII BJELOVARSKO-BILOGORSKA","ŠANDROVAC","ŠANDROVAC",301442,"171/35",7664,"PAŠNJAK","ZAKUP","Š1/PŠ"]
[406,"VII BJELOVARSKO-BILOGORSKA","ŠANDROVAC","ŠANDROVAC",301442,"171/37",2262,"ORANICA","ZAKUP","Š1/PŠ"]
[407,"VII BJELOVARSKO-BILOGORSKA","ŠANDROVAC","ŠANDROVAC",301442,"1715/6",1392,"LIVADA","ZAKUP","Š1/P3"]
[408,"VII BJELOVARSKO-BILOGORSKA","ŠANDROVAC","ŠANDROVAC",301442,"1715/6",3237,"ORANICA","ZAKUP","Š1/P3"]
[409,"VII BJELOVARSKO-BILOGORSKA","ŠANDROVAC","ŠANDROVAC",301442,"1715/7",3776,"ORANICA","ZAKUP","Š1/P3"]
[{"$f":"A412+1","v":410},"VII BJELOVARSKO-BILOGORSKA","ŠANDROVAC","ŠANDROVAC",301442,"1715/7",2518,"LIVADA","ZAKUP","Š1/P3"]
[411,"VII BJELOVARSKO-BILOGORSKA","ŠANDROVAC","ŠANDROVAC",301442,"1715/7",543,"VINOGRAD","ZAKUP","Š1/P3"]
[412,"VII BJELOVARSKO-BILOGORSKA","ŠANDROVAC","ŠANDROVAC",301442,"171/71",5301,"ORANICA","ZAKUP","PŠ"]
[413,"VII BJELOVARSKO-BILOGORSKA","ŠANDROVAC","ŠANDROVAC",301442,"1717/1",1640,"ORANICA","ZAKUP","P3"]
[414,"VII BJELOVARSKO-BILOGORSKA","ŠANDROVAC","ŠANDROVAC",301442,"1717/2",1079,"ORANICA","ZAKUP","P3",null,null,"DIO K.Č., SUVLASNIŠTVO"]
[415,"VII BJELOVARSKO-BILOGORSKA","ŠANDROVAC","ŠANDROVAC",301442,"1717/3",975,"ORANICA","ZAKUP"]
[416,"VII BJELOVARSKO-BILOGORSKA","ŠANDROVAC","ŠANDROVAC",301442,"174/2",8945,"ORANICA","ZAKUP","PŠ"]
[{"$f":"A419+1","v":417},"VII BJELOVARSKO-BILOGORSKA","ŠANDROVAC","ŠANDROVAC",301442,"1784/105",1536,"ORANICA","ZAKUP","P3"]
[418,"VII BJELOVARSKO-BILOGORSKA","ŠANDROVAC","ŠANDROVAC",301442,"1784/110",993,"ORANICA","ZAKUP","P3"]
[419,"VII BJELOVARSKO-BILOGORSKA","ŠANDROVAC","ŠANDROVAC",301442,"1784/111",1784,"VINOGRAD","ZAKUP","P3",null,null,"DIO K.Č., SUVLASNIŠTVO"]
[420,"VII BJELOVARSKO-BILOGORSKA","ŠANDROVAC","ŠANDROVAC",301442,"1784/111",345,"LIVADA","ZAKUP","P3"]
[421,"VII BJELOVARSKO-BILOGORSKA","ŠANDROVAC","ŠANDROVAC",301442,"1784/112",374,"ORANICA","ZAKUP","P3"]
[422,"VII BJELOVARSKO-BILOGORSKA","ŠANDROVAC","ŠANDROVAC",301442,"1784/113",270,"LIVADA","ZAKUP","P3"]
[423,"VII BJELOVARSKO-BILOGORSKA","ŠANDROVAC","ŠANDROVAC",301442,"1784/113",1439,"VINOGRAD","ZAKUP","P3"]
[424,"VII BJELOVARSKO-BILOGORSKA","ŠANDROVAC","ŠANDROVAC",301442,"1784/114",126,"VINOGRAD","ZAKUP","P3"]
[425,"VII BJELOVARSKO-BILOGORSKA","ŠANDROVAC","ŠANDROVAC",301442,"1784/17",414,"ORANICA","ZAKUP","P3"]
[426,"VII BJELOVARSKO-BILOGORSKA","ŠANDROVAC","ŠANDROVAC",301442,"1784/17",468,"VINOGRAD","ZAKUP","P3"]
[427,"VII BJELOVARSKO-BILOGORSKA","ŠANDROVAC","ŠANDROVAC",301442,"1784/96",4183,"ORANICA","ZAKUP","Š1"]
[428,"VII BJELOVARSKO-BILOGORSKA","ŠANDROVAC","ŠANDROVAC",301442,"1798/1",3777,"LIVADA","ZAKUP","P3"]
[429,"VII BJELOVARSKO-BILOGORSKA","ŠANDROVAC","ŠANDROVAC",301442,"1806/10",360,"ORANICA","ZAKUP","PŠ",null,null,"DIO K.Č., SUVLASNIŠTVO"]
[430,"VII BJELOVARSKO-BILOGORSKA","ŠANDROVAC","ŠANDROVAC",301442,"1806/4",471,"ORANICA","ZAKUP","PŠ"]
[431,"VII BJELOVARSKO-BILOGORSKA","ŠANDROVAC","ŠANDROVAC",301442,"1806/6",791,"ORANICA","ZAKUP","PŠ"]
[432,"VII BJELOVARSKO-BILOGORSKA","ŠANDROVAC","ŠANDROVAC",301442,"18/1",1342,"LIVADA","ZAKUP","MN/PŠ",null,null,"DIO U G.P."]
[433,"VII BJELOVARSKO-BILOGORSKA","ŠANDROVAC","ŠANDROVAC",301442,"1817/1",3284,"ORANICA","ZAKUP",null,"ZAKUP","09.12.2045."]
[434,"VII BJELOVARSKO-BILOGORSKA","ŠANDROVAC","ŠANDROVAC",301442,"1817/2",1165,"ORANICA","ZAKUP",null,"ZAKUP","09.12.2045."]
[435,"VII BJELOVARSKO-BILOGORSKA","ŠANDROVAC","ŠANDROVAC",301442,"1821/17",1284,"ORANICA","ZAKUP","P3"]
[436,"VII BJELOVARSKO-BILOGORSKA","ŠANDROVAC","ŠANDROVAC",301442,"1821/6",2079,"ORANICA","ZAKUP","P3","ZAKUP","09.12.2045."]
[437,"VII BJELOVARSKO-BILOGORSKA","ŠANDROVAC","ŠANDROVAC",301442,"1821/7",2906,"ORANICA","ZAKUP","P3"]
[438,"VII BJELOVARSKO-BILOGORSKA","ŠANDROVAC","ŠANDROVAC",301442,"1821/8",496,"VINOGRAD","ZAKUP","P3"]
[439,"VII BJELOVARSKO-BILOGORSKA","ŠANDROVAC","ŠANDROVAC",301442,"1821/8",2410,"ORANICA","ZAKUP","P3"]
[440,"VII BJELOVARSKO-BILOGORSKA","ŠANDROVAC","ŠANDROVAC",301442,"1821/9",2726,"ORANICA","ZAKUP","P3"]
[441,"VII BJELOVARSKO-BILOGORSKA","ŠANDROVAC","ŠANDROVAC",301442,"182/3",284,"ORANICA","ZAKUP","Š1"]
[442,"VII BJELOVARSKO-BILOGORSKA","ŠANDROVAC","ŠANDROVAC",301442,"1823/3",360,"ORANICA","ZAKUP","P3"]
[443,"VII BJELOVARSKO-BILOGORSKA","ŠANDROVAC","ŠANDROVAC",301442,"1824",2018,"ORANICA","ZAKUP","PŠ/P3","ZAKUP","09.12.2045."]
[444,"VII BJELOVARSKO-BILOGORSKA","ŠANDROVAC","ŠANDROVAC",301442,"1825/1",820,"ORANICA","ZAKUP","P3","ZAKUP","09.12.2045."]
[445,"VII BJELOVARSKO-BILOGORSKA","ŠANDROVAC","ŠANDROVAC",301442,"1825/2",2234,"ORANICA","ZAKUP","P3","ZAKUP","09.12.2045."]
[446,"VII BJELOVARSKO-BILOGORSKA","ŠANDROVAC","ŠANDROVAC",301442,"1826/1",32,"ORANICA","ZAKUP","P3"]
[447,"VII BJELOVARSKO-BILOGORSKA","ŠANDROVAC","ŠANDROVAC",301442,"1826/2",971,"ORANICA","ZAKUP","P3"]
[448,"VII BJELOVARSKO-BILOGORSKA","ŠANDROVAC","ŠANDROVAC",301442,"1827/1",1363,"VINOGRAD","ZAKUP","P3","ZAKUP","09.12.2045."]
[449,"VII BJELOVARSKO-BILOGORSKA","ŠANDROVAC","ŠANDROVAC",301442,"1827/2",662,"ORANICA","ZAKUP","P3","ZAKUP","09.12.2045."]
[450,"VII BJELOVARSKO-BILOGORSKA","ŠANDROVAC","ŠANDROVAC",301442,"1828",1320,"ORANICA","ZAKUP","P3","ZAKUP","09.12.2045."]
[451,"VII BJELOVARSKO-BILOGORSKA","ŠANDROVAC","ŠANDROVAC",301442,"1830/1",7553,"ORANICA","ZAKUP","P3","ZAKUP","09.12.2045."]
[452,"VII BJELOVARSKO-BILOGORSKA","ŠANDROVAC","ŠANDROVAC",301442,"1830/2",306,"VINOGRAD","ZAKUP","P3","ZAKUP","09.12.2045."]
[453,"VII BJELOVARSKO-BILOGORSKA","ŠANDROVAC","ŠANDROVAC",301442,"1830/3",32,"ORANICA","ZAKUP","P3"]
[454,"VII BJELOVARSKO-BILOGORSKA","ŠANDROVAC","ŠANDROVAC",301442,"1831",673,"ORANICA","ZAKUP","P3"]
[455,"VII BJELOVARSKO-BILOGORSKA","ŠANDROVAC","ŠANDROVAC",301442,"1832/3",6172,"ORANICA","ZAKUP","P3","ZAKUP","09.12.2045."]
[456,"VII BJELOVARSKO-BILOGORSKA","ŠANDROVAC","ŠANDROVAC",301442,"1833/1",3676,"ORANICA","ZAKUP","P3","ZAKUP","09.12.2045."]
[457,"VII BJELOVARSKO-BILOGORSKA","ŠANDROVAC","ŠANDROVAC",301442,"184/7",5485,"ORANICA","ZAKUP","Š1/PŠ"]
[458,"VII BJELOVARSKO-BILOGORSKA","ŠANDROVAC","ŠANDROVAC",301442,"1867/3",65,"PAŠNJAK","ZAKUP","PŠ"]
[459,"VII BJELOVARSKO-BILOGORSKA","ŠANDROVAC","ŠANDROVAC",301442,"1868/3",8779,"ORANICA","ZAKUP","Š1/PŠ"]
[460,"VII BJELOVARSKO-BILOGORSKA","ŠANDROVAC","ŠANDROVAC",301442,"1871",2629,"ORANICA","ZAKUP","PŠ"]
[461,"VII BJELOVARSKO-BILOGORSKA","ŠANDROVAC","ŠANDROVAC",301442,"1872/2",3187,"ORANICA","ZAKUP","PŠ","PRIVREMENO KORIŠTENJE POLJOPRIVREDNOG ZEMLJIŠTA U VLASNIŠTVU RH","03.23.2024."]
[462,"VII BJELOVARSKO-BILOGORSKA","ŠANDROVAC","ŠANDROVAC",301442,"1873/5",4046,"PAŠNJAK","ZAKUP","PŠ"]
[463,"VII BJELOVARSKO-BILOGORSKA","ŠANDROVAC","ŠANDROVAC",301442,"1902/1",6104,"VOĆNJAK","ZAKUP","PŠ",null,null,"DIO K.Č., SUVLASNIŠTVO"]
[464,"VII BJELOVARSKO-BILOGORSKA","ŠANDROVAC","ŠANDROVAC",301442,"1924/22",489,"ORANICA","PRODAJA","Š1","PRIVREMENO KORIŠTENJE POLJOPRIVREDNOG ZEMLJIŠTA U VLASNIŠTVU RH","09/2022"]
[465,"VII BJELOVARSKO-BILOGORSKA","ŠANDROVAC","ŠANDROVAC",301442,"1925/2",3676,"ORANICA","PRODAJA","Š1/PŠ","PRIVREMENO KORIŠTENJE POLJOPRIVREDNOG ZEMLJIŠTA U VLASNIŠTVU RH","09/2022"]
[466,"VII BJELOVARSKO-BILOGORSKA","ŠANDROVAC","ŠANDROVAC",301442,"1949/7",2406,"ORANICA","ZAKUP","PŠ"]
[467,"VII BJELOVARSKO-BILOGORSKA","ŠANDROVAC","ŠANDROVAC",301442,"1987/5",468,"LIVADA","ZAKUP","Š1/PŠ"]
[{"$f":"A470+1","v":468},"VII BJELOVARSKO-BILOGORSKA","ŠANDROVAC","ŠANDROVAC",301442,"1987/7",560,"ORANICA","ZAKUP","Š1/PŠ"]
[469,"VII BJELOVARSKO-BILOGORSKA","ŠANDROVAC","ŠANDROVAC",301442,"1989/3",496,"ORANICA","ZAKUP","PŠ"]
[470,"VII BJELOVARSKO-BILOGORSKA","ŠANDROVAC","ŠANDROVAC",301442,"2048/2",3705,"ORANICA","ZAKUP","P3"]
[471,"VII BJELOVARSKO-BILOGORSKA","ŠANDROVAC","ŠANDROVAC",301442,"2050/2",1029,"LIVADA","ZAKUP","P3"]
[472,"VII BJELOVARSKO-BILOGORSKA","ŠANDROVAC","ŠANDROVAC",301442,"2053/2",2158,"ORANICA","ZAKUP","P3"]
[473,"VII BJELOVARSKO-BILOGORSKA","ŠANDROVAC","ŠANDROVAC",301442,"2145/5",2313,"ORANICA","ZAKUP","PŠ"]
[474,"VII BJELOVARSKO-BILOGORSKA","ŠANDROVAC","ŠANDROVAC",301442,"2174/2",72,"LIVADA","ZAKUP","P3"]
[475,"VII BJELOVARSKO-BILOGORSKA","ŠANDROVAC","ŠANDROVAC",301442,"222/15",7459,"ORANICA","ZAKUP","PŠ"]
[476,"VII BJELOVARSKO-BILOGORSKA","ŠANDROVAC","ŠANDROVAC",301442,"222/20",40,"LIVADA","ZAKUP","PŠ"]
[477,"VII BJELOVARSKO-BILOGORSKA","ŠANDROVAC","ŠANDROVAC",301442,"222/21",1216,"LIVADA","ZAKUP","PŠ","ZAKUP","09.12.2045."]
[478,"VII BJELOVARSKO-BILOGORSKA","ŠANDROVAC","ŠANDROVAC",301442,"222/28",4316,"ORANICA","ZAKUP","Š1/PŠ","ZAKUP","09.12.2045."]
[{"$f":"A481+1","v":479},"VII BJELOVARSKO-BILOGORSKA","ŠANDROVAC","ŠANDROVAC",301442,"222/28",2877,"LIVADA","ZAKUP","Š1/PŠ","ZAKUP","09.12.2045."]
[480,"VII BJELOVARSKO-BILOGORSKA","ŠANDROVAC","ŠANDROVAC",301442,"222/33",3956,"ORANICA","ZAKUP","Š1/PŠ"]
[481,"VII BJELOVARSKO-BILOGORSKA","ŠANDROVAC","ŠANDROVAC",301442,"222/33",1439,"LIVADA","ZAKUP","Š1/PŠ"]
[482,"VII BJELOVARSKO-BILOGORSKA","ŠANDROVAC","ŠANDROVAC",301442,"222/34",2446,"ORANICA","ZAKUP","Š1/PŠ","ZAKUP","09.12.2045."]
[483,"VII BJELOVARSKO-BILOGORSKA","ŠANDROVAC","ŠANDROVAC",301442,"222/45",3521,"ORANICA","ZAKUP","P3","ZAKUP","09.12.2045."]
[484,"VII BJELOVARSKO-BILOGORSKA","ŠANDROVAC","ŠANDROVAC",301442,"222/46",2514,"ORANICA","ZAKUP","P3","ZAKUP","09.12.2045."]
[485,"VII BJELOVARSKO-BILOGORSKA","ŠANDROVAC","ŠANDROVAC",301442,"236/14",993,"LIVADA","ZAKUP","PŠ"]
[486,"VII BJELOVARSKO-BILOGORSKA","ŠANDROVAC","ŠANDROVAC",301442,"242/41",356,"LIVADA","ZAKUP","Š1/PŠ"]
[487,"VII BJELOVARSKO-BILOGORSKA","ŠANDROVAC","ŠANDROVAC",301442,"242/42",914,"LIVADA","ZAKUP","P3"]
[488,"VII BJELOVARSKO-BILOGORSKA","ŠANDROVAC","ŠANDROVAC",301442,"25/3",996,"LIVADA","ZAKUP","MN/PŠ",null,null,"DIO U G.P."]
[489,"VII BJELOVARSKO-BILOGORSKA","ŠANDROVAC","ŠANDROVAC",301442,"264",1971,"ORANICA","ZAKUP","Š1/P3"]
[490,"VII BJELOVARSKO-BILOGORSKA","ŠANDROVAC","ŠANDROVAC",301442,"309/1",72,"ORANICA","ZAKUP","PŠ"]
[491,"VII BJELOVARSKO-BILOGORSKA","ŠANDROVAC","ŠANDROVAC",301442,"319/2",1730,"ORANICA","ZAKUP","P3",null,null,"DIO K.Č., SUVLASNIŠTVO"]
[492,"VII BJELOVARSKO-BILOGORSKA","ŠANDROVAC","ŠANDROVAC",301442,"320/2",356,"LIVADA","ZAKUP","P3"]
[493,"VII BJELOVARSKO-BILOGORSKA","ŠANDROVAC","ŠANDROVAC",301442,"322/19",101,"LIVADA","ZAKUP","P3"]
[494,"VII BJELOVARSKO-BILOGORSKA","ŠANDROVAC","ŠANDROVAC",301442,"335",3618,"ORANICA","ZAKUP","PŠ","ZAKUP","09.12.2045."]
[495,"VII BJELOVARSKO-BILOGORSKA","ŠANDROVAC","ŠANDROVAC",301442,"336/1",1989,"ORANICA","ZAKUP","PŠ","ZAKUP","09.12.2045."]
[496,"VII BJELOVARSKO-BILOGORSKA","ŠANDROVAC","ŠANDROVAC",301442,"336/2",575,"ORANICA","ZAKUP","PŠ","ZAKUP","09.12.2045."]
[497,"VII BJELOVARSKO-BILOGORSKA","ŠANDROVAC","ŠANDROVAC",301442,"341/2",2341,"ORANICA","ZAKUP","PŠ"]
[498,"VII BJELOVARSKO-BILOGORSKA","ŠANDROVAC","ŠANDROVAC",301442,"343",3125,"ORANICA","ZAKUP","PŠ"]
[499,"VII BJELOVARSKO-BILOGORSKA","ŠANDROVAC","ŠANDROVAC",301442,"352",284,"LIVADA","ZAKUP","PŠ"]
[500,"VII BJELOVARSKO-BILOGORSKA","ŠANDROVAC","ŠANDROVAC",301442,"360/1",8423,"ORANICA","ZAKUP","PŠ"]
[501,"VII BJELOVARSKO-BILOGORSKA","ŠANDROVAC","ŠANDROVAC",301442,"391/3",1385,"PAŠNJAK","PRODAJA","PŠ","PRIVREMENO KORIŠTENJE POLJOPRIVREDNOG ZEMLJIŠTA U VLASNIŠTVU RH","2024-03-22"]
[502,"VII BJELOVARSKO-BILOGORSKA","ŠANDROVAC","ŠANDROVAC",301442,"392",528,"PAŠNJAK","PRODAJA","PŠ","PRIVREMENO KORIŠTENJE POLJOPRIVREDNOG ZEMLJIŠTA U VLASNIŠTVU RH","2024-03-22"]
[503,"VII BJELOVARSKO-BILOGORSKA","ŠANDROVAC","ŠANDROVAC",301442,"429",2313,"ORANICA","ZAKUP","MN/Š",null,null,"DIO U G.P."]
[504,"VII BJELOVARSKO-BILOGORSKA","ŠANDROVAC","ŠANDROVAC",301442,"439",3377,"LIVADA","ZAKUP","Š1/P3"]
[505,"VII BJELOVARSKO-BILOGORSKA","ŠANDROVAC","ŠANDROVAC",301442,"451",1119,"VINOGRAD","ZAKUP","PŠ"]
[506,"VII BJELOVARSKO-BILOGORSKA","ŠANDROVAC","ŠANDROVAC",301442,"451",3489,"ORANICA","ZAKUP","PŠ"]
[507,"VII BJELOVARSKO-BILOGORSKA","ŠANDROVAC","ŠANDROVAC",301442,"5/1",65,"LIVADA","ZAKUP","PŠ"]
[508,"VII BJELOVARSKO-BILOGORSKA","ŠANDROVAC","ŠANDROVAC",301442,"6/12",144,"LIVADA","ZAKUP","PŠ"]
[509,"VII BJELOVARSKO-BILOGORSKA","ŠANDROVAC","ŠANDROVAC",301442,"6/13",79,"LIVADA","ZAKUP","PŠ"]
[510,"VII BJELOVARSKO-BILOGORSKA","ŠANDROVAC","ŠANDROVAC",301442,"6/5",230,"ORANICA","ZAKUP","PŠ"]
[511,"VII BJELOVARSKO-BILOGORSKA","ŠANDROVAC","ŠANDROVAC",301442,"70/3",158,"VINOGRAD","ZAKUP","PŠ"]
[512,"VII BJELOVARSKO-BILOGORSKA","ŠANDROVAC","ŠANDROVAC",301442,"7/3",557,"LIVADA","ZAKUP","PŠ"]
[513,"VII BJELOVARSKO-BILOGORSKA","ŠANDROVAC","ŠANDROVAC",301442,"739",2255,"ORANICA","ZAKUP","P3",null,null,"DIO K.Č., SUVLASNIŠTVO"]
[514,"VII BJELOVARSKO-BILOGORSKA","ŠANDROVAC","ŠANDROVAC",301442,"740",3273,"LIVADA","ZAKUP","P3"]
[515,"VII BJELOVARSKO-BILOGORSKA","ŠANDROVAC","ŠANDROVAC",301442,"741/1",816,"LIVADA","ZAKUP","P3"]
[516,"VII BJELOVARSKO-BILOGORSKA","ŠANDROVAC","ŠANDROVAC",301442,"741/2",816,"LIVADA","ZAKUP","P3"]
[517,"VII BJELOVARSKO-BILOGORSKA","ŠANDROVAC","ŠANDROVAC",301442,"741/3",820,"LIVADA","ZAKUP","P3"]
[518,"VII BJELOVARSKO-BILOGORSKA","ŠANDROVAC","ŠANDROVAC",301442,"755/3",1043,"LIVADA","ZAKUP","P3/MN",null,null,"DIO U G.P."]
[519,"VII BJELOVARSKO-BILOGORSKA","ŠANDROVAC","ŠANDROVAC",301442,"763/1",3615,"ORANICA","ZAKUP","PŠ"]
[520,"VII BJELOVARSKO-BILOGORSKA","ŠANDROVAC","ŠANDROVAC",301442,"7/7",169,"LIVADA","ZAKUP","PŠ"]
[521,"VII BJELOVARSKO-BILOGORSKA","ŠANDROVAC","ŠANDROVAC",301442,"779/1",3345,"ORANICA","PRODAJA","PŠ","PRIVREMENO KORIŠTENJE POLJOPRIVREDNOG ZEMLJIŠTA U VLASNIŠTVU RH","01/10/2024"]
[522,"VII BJELOVARSKO-BILOGORSKA","ŠANDROVAC","ŠANDROVAC",301442,"779/4",1809,"ORANICA","PRODAJA","PŠ","PRIVREMENO KORIŠTENJE POLJOPRIVREDNOG ZEMLJIŠTA U VLASNIŠTVU RH","01/10/2024"]
[523,"VII BJELOVARSKO-BILOGORSKA","ŠANDROVAC","ŠANDROVAC",301442,"780/1",845,"ORANICA","ZAKUP","PŠ"]
[524,"VII BJELOVARSKO-BILOGORSKA","ŠANDROVAC","ŠANDROVAC",301442,"785/1",1957,"ORANICA","PRODAJA","PŠ","PRIVREMENO KORIŠTENJE POLJOPRIVREDNOG ZEMLJIŠTA U VLASNIŠTVU RH","01/10/2024"]
[525,"VII BJELOVARSKO-BILOGORSKA","ŠANDROVAC","ŠANDROVAC",301442,"785/106",511,"VINOGRAD","ZAKUP","PŠ"]
[{"$f":"A528+1","v":526},"VII BJELOVARSKO-BILOGORSKA","ŠANDROVAC","ŠANDROVAC",301442,"785/106",360,"LIVADA","ZAKUP","PŠ"]
[527,"VII BJELOVARSKO-BILOGORSKA","ŠANDROVAC","ŠANDROVAC",301442,"785/156",4427,"ORANICA","ZAKUP","Š1/PŠ"]
[528,"VII BJELOVARSKO-BILOGORSKA","ŠANDROVAC","ŠANDROVAC",301442,"785/198",2827,"ORANICA","ZAKUP","PŠ"]
[529,"VII BJELOVARSKO-BILOGORSKA","ŠANDROVAC","ŠANDROVAC",301442,"795/5",928,"ORANICA","ZAKUP","PŠ"]
[530,"VII BJELOVARSKO-BILOGORSKA","ŠANDROVAC","ŠANDROVAC",301442,"795/6",924,"ORANICA","ZAKUP","PŠ"]
[531,"VII BJELOVARSKO-BILOGORSKA","ŠANDROVAC","ŠANDROVAC",301442,"801/2",1870,"LIVADA","ZAKUP","PŠ"]
[532,"VII BJELOVARSKO-BILOGORSKA","ŠANDROVAC","ŠANDROVAC",301442,"801/2",1018,"VINOGRAD","ZAKUP","PŠ"]
[533,"VII BJELOVARSKO-BILOGORSKA","ŠANDROVAC","ŠANDROVAC",301442,"812/8",773,"VINOGRAD","ZAKUP","PŠ"]
[534,"VII BJELOVARSKO-BILOGORSKA","ŠANDROVAC","ŠANDROVAC",301442,"8/23",4,"LIVADA","ZAKUP","PŠ"]
[535,"VII BJELOVARSKO-BILOGORSKA","ŠANDROVAC","ŠANDROVAC",301442,"832",2111,"ORANICA","ZAKUP","PŠ"]
[536,"VII BJELOVARSKO-BILOGORSKA","ŠANDROVAC","ŠANDROVAC",301442,"866/218",3748,"ORANICA","PRODAJA","P3","PRIVREMENO KORIŠTENJE POLJOPRIVREDNOG ZEMLJIŠTA U VLASNIŠTVU RH","2023-01-15"]
[537,"VII BJELOVARSKO-BILOGORSKA","ŠANDROVAC","ŠANDROVAC",301442,"866/219",1061,"ORANICA","PRODAJA","P3","PRIVREMENO KORIŠTENJE POLJOPRIVREDNOG ZEMLJIŠTA U VLASNIŠTVU RH","2023-01-15"]
[538,"VII BJELOVARSKO-BILOGORSKA","ŠANDROVAC","ŠANDROVAC",301442,"866/242",4931,"ORANICA","ZAKUP","Š1/PŠ"]
[539,"VII BJELOVARSKO-BILOGORSKA","ŠANDROVAC","ŠANDROVAC",301442,"866/245",601,"ORANICA","ZAKUP","PŠ",null,null,"DIO K.Č., SUVLASNIŠTVO"]
[540,"VII BJELOVARSKO-BILOGORSKA","ŠANDROVAC","ŠANDROVAC",301442,"866/69",3158,"ORANICA","ZAKUP","PŠ"]
[541,"VII BJELOVARSKO-BILOGORSKA","ŠANDROVAC","ŠANDROVAC",301442,"866/87",3625,"ORANICA","ZAKUP","Š1/P3"]
[542,"VII BJELOVARSKO-BILOGORSKA","ŠANDROVAC","ŠANDROVAC",301442,"866/87",1618,"LIVADA","ZAKUP","Š1/P3"]
[543,"VII BJELOVARSKO-BILOGORSKA","ŠANDROVAC","ŠANDROVAC",301442,"866/87",798,"VINOGRAD","ZAKUP","Š1/P3"]
[544,"VII BJELOVARSKO-BILOGORSKA","ŠANDROVAC","ŠANDROVAC",301442,"893/3",827,"ORANICA","ZAKUP","PŠ"]
[545,"VII BJELOVARSKO-BILOGORSKA","ŠANDROVAC","ŠANDROVAC",301442,"893/4",827,"ORANICA","ZAKUP","PŠ"]
[546,"VII BJELOVARSKO-BILOGORSKA","ŠANDROVAC","ŠANDROVAC",301442,"896/1",1565,"LIVADA","ZAKUP","PŠ"]
[547,"VII BJELOVARSKO-BILOGORSKA","ŠANDROVAC","ŠANDROVAC",301442,"896/8",1798,"LIVADA","ZAKUP","PŠ"]
[548,"VII BJELOVARSKO-BILOGORSKA","ŠANDROVAC","ŠANDROVAC",301442,"897/3",5499,"LIVADA","ZAKUP","PŠ"]
[549,"VII BJELOVARSKO-BILOGORSKA","ŠANDROVAC","ŠANDROVAC",301442,"909/30",237,"LIVADA","ZAKUP","PŠ",null,null,"DIO K.Č., SUVLASNIŠTVO"]
[550,"VII BJELOVARSKO-BILOGORSKA","ŠANDROVAC","ŠANDROVAC",301442,"935/6",2971,"ORANICA","ZAKUP","PŠ"]
[551,"VII BJELOVARSKO-BILOGORSKA","ŠANDROVAC","ŠANDROVAC",301442,"936/45",4431,"PAŠNJAK","ZAKUP","Š1/PŠ",null,null,"OBRASLO"]
[552,"VII BJELOVARSKO-BILOGORSKA","ŠANDROVAC","ŠANDROVAC",301442,"936/46",928,"LIVADA","ZAKUP","Š1",null,null,"OBRASLO"]
[553,"VII BJELOVARSKO-BILOGORSKA","ŠANDROVAC","ŠANDROVAC",301442,"936/47",3794,"LIVADA","ZAKUP","PŠ",null,null,"OBRASLO"]
[554,"VII BJELOVARSKO-BILOGORSKA","ŠANDROVAC","ŠANDROVAC",301442,"936/48",3406,"ORANICA","ZAKUP","PŠ",null,null,"OBRASLO"]
[555,"VII BJELOVARSKO-BILOGORSKA","ŠANDROVAC","ŠANDROVAC",301442,"936/48",1583,"LIVADA","ZAKUP","PŠ",null,null,"OBRASLO"]
[556,"VII BJELOVARSKO-BILOGORSKA","ŠANDROVAC","ŠANDROVAC",301442,"972/1",532,"LIVADA","ZAKUP","Š1/PŠ",null,null,"OBRASLO"]
[557,"VII BJELOVARSKO-BILOGORSKA","ŠANDROVAC","ŠANDROVAC",301442,"975",119,"LIVADA","ZAKUP","Š1/PŠ",null,null,"DIO K.Č., SUVLASNIŠTVO"]
[558,"VII BJELOVARSKO-BILOGORSKA","ŠANDROVAC","ŠANDROVAC",301442,"976",968,"VINOGRAD","ZAKUP","Š1/PŠ",null,null,"DIO K.Č., SUVLASNIŠTVO"]
[559,"VII BJELOVARSKO-BILOGORSKA","ŠANDROVAC","ŠANDROVAC",301442,"976",788,"LIVADA","ZAKUP","Š1/PŠ"]
[560,"VII BJELOVARSKO-BILOGORSKA","ŠANDROVAC","ŠANDROVAC",301442,"983/2",665,"LIVADA","ZAKUP","PŠ",null,null,"OBRASLO"]
[561,"VII BJELOVARSKO-BILOGORSKA","ŠANDROVAC","ŠANDROVAC",301442,"983/30",1194,"LIVADA","ZAKUP","Š1",null,null,"OBRASLO"]
[562,"VII BJELOVARSKO-BILOGORSKA","ŠANDROVAC","ŠANDROVAC",301442,"983/36",719,"VINOGRAD","ZAKUP","Š1",null,null,"OBRASLO"]
[563,"VII BJELOVARSKO-BILOGORSKA","ŠANDROVAC","ŠANDROVAC",301442,"983/41",32,"LIVADA","ZAKUP","PŠ",null,null,"OBRASLO"]
[564,"VII BJELOVARSKO-BILOGORSKA","ŠANDROVAC","ŠANDROVAC",301442,"983/61",611,"ORANICA","ZAKUP","PŠ",null,null,"DIO K.Č., SUVLASNIŠTVO"]
[565,"VII BJELOVARSKO-BILOGORSKA","ŠANDROVAC","ŠANDROVAC",301442,"983/68",3072,"ORANICA","ZAKUP","Š1/PŠ",null,null,"OBRASLO"]
[566,"VII BJELOVARSKO-BILOGORSKA","ŠANDROVAC","ŠANDROVAC",301442,"983/70",874,"LIVADA","ZAKUP","PŠ",null,null,"OBRASLO"]
[567,"VII BJELOVARSKO-BILOGORSKA","ŠANDROVAC","ŠANDROVAC",301442,"983/80",2629,"ORANICA","ZAKUP","Š1",null,null,"OBRASLO"]
[568,"VII BJELOVARSKO-BILOGORSKA","ŠANDROVAC","ŠANDROVAC",301442,"992",36,"ORANICA","ZAKUP","PŠ",null,null,"DIO K.Č., SUVLASNIŠTVO"]
[569,"VII BJELOVARSKO-BILOGORSKA","ŠANDROVAC","ŠANDROVAC",301442,"993",5137,"ORANICA","ZAKUP","PŠ",null,null,"OBRASLO"]
[570,"VII BJELOVARSKO-BILOGORSKA","ŠANDROVAC","ŠANDROVAC",301442,"994",547,"ORANICA","ZAKUP","Š1/PŠ",null,null,"DIO K.Č., SUVLASNIŠTVO"]
[571,"VII BJELOVARSKO-BILOGORSKA","ŠANDROVAC","ŠANDROVAC",301442,"998/4",2050,"ORANICA","ZAKUP","Š1/PŠ"]
[572,"VII BJELOVARSKO-BILOGORSKA","ŠANDROVAC","ŠANDROVAC",301442,"998/4",450,"VINOGRAD","ZAKUP","Š1/PŠ"]
["ukupno",null,null,null,null,null,{"$f":"SUM(G4:G575)","v":1492848}]
[]
["OBJAŠNJENJE:\n1 – upisati redni broj\n2 – upisati naziv županije\n3 – upisati naziv općine\n4 – upisati naziv katastarske općine\n5 – upisati katastarsku oznaku općine\n6 – upisati broj katastarske čestice\n7 – pisati površinu u metrima kvadratnim. Ne koristiti razmak između brojeve, ne koristiti decimalnu točku ili zarez\n8 – upisati naziv kulture upisan u katastru\n9 – upisati planirani oblik raspolaganja (POVRAT, PRODAJA, ZAKUP, ZAKUP ZAJEDNIČKOG PAŠNJAKA, ZAKUP ZA RIBNJAKE, OSTALO)\n10 – upisati (MINIRANO, OBRASLO, NESREĐENO ZK STANJE, VIŠEGODIŠNJI NASADI, SUSTAVI NAVODNJAVANJA I ODVODNJE, P1 i P2……)\n11 – upisati dosadašnji oblik raspolaganja, naziv iz ugovora, koristiti skraćeni naziv npr.: KONCESIJA, DUGOGODIŠNJI, ZAKUP, PRIVREMENO, PAŠNJACI, RIBNJACI I SL.\n12 – upisati do kojeg datuma je trajanje raspolaganja datum upisati na način (dd.mm.gggg.)\n13 – upisati neke važne činjenice za koje se smatra da bi bile bitne"]

{"sheet":"Šifrarnici","index":1,"n_rows":558,"n_cols":5,"rows_kept":558,"cut":false,"hidden":false,"merged":[]}
["Kolona 2","Kolona 3","Kolona 8","Kolona 9","Kolona 11"]
["POPIS ŽUPANIJA U REPUBLICI HRVATSKOJ\n I GRAD ZAGREB","JLS","Katastarska kultura","Kč oblik raspolagnja","Kč  dosadašnji oblik raspolaganja"]
["I ZAGREBAČKA","ANDRIJAŠEVCI","GRADJEVINSKO ZEMLJIŠTE","ZAKUP","ZAKUP"]
["II KRAPINSKO-ZAGORSKA","ANTUNOVAC","LIVADA","ZAKUP ZA RIBNJAKE","ZAKUP ZA RIBNJAKE"]
["III SISAČKO-MOSLAVAČKA","BABINA GREDA","MASLINIK","ZAKUP ZAJEDNIČKIH PAŠNJAKA","ZAKUP ZAJEDNIČKIH PAŠNJAKA"]
["IV KARLOVAČKA","BAKAR","MOČVARA","PRODAJA","PRODAJA"]
["V VARAŽDINSKA","BALE - VALLE","ORANICA","PRIVREMENO KORIŠTENJE POLJOPRIVREDNOG ZEMLJIŠTA U VLASNIŠTVU RH","PRIVREMENO KORIŠTENJE POLJOPRIVREDNOG ZEMLJIŠTA U VLASNIŠTVU RH"]
["VI KOPRIVNIČKO-KRIŽEVAČKA","BARBAN","PAŠNJAK","PRIVREMENO KORIŠTENJE RIBNJAKA U VLASNIŠTVU RH","PRIVREMENO KORIŠTENJE RIBNJAKA U VLASNIŠTVU RH"]
["VII BJELOVARSKO-BILOGORSKA","BARILOVIĆ","RIBNJAK","PRIVREMENO KORIŠTENJE PAŠNJAKA U VLASNIŠTVU RH","PRIVREMENO KORIŠTENJE PAŠNJAKA U VLASNIŠTVU RH"]
["VIII PRIMORSKO-GORANSKA","BAŠKA","ŠUMA","ZAMJENA","ZAMJENA"]
["IX LIČKO-SENJSKA","BAŠKA VODA","TRSTIK","KORIŠTENJE POLJOPRIVREDNOG ZEMLJIŠTA BEZ JAVNOG POZIVA","KORIŠTENJE POLJOPRIVREDNOG ZEMLJIŠTA BEZ JAVNOG POZIVA"]
["X VIROVITIČKO-PODRAVSKA","BEBRINA","VINOGRAD","KORIŠTENJE POLJOPRIVREDNOG ZEMLJIŠTA IZRAVNOM POGODBOM","KORIŠTENJE POLJOPRIVREDNOG ZEMLJIŠTA IZRAVNOM POGODBOM"]
["XI POŽEŠKO-SLAVONSKA","BEDEKOVČINA","VOĆNJAK","RAZVRGNUćE SUVLASNIČKE ZAJEDNICE","RAZVRGNUćE SUVLASNIČKE ZAJEDNICE"]
["XII BRODSKO-POSAVSKA","BEDENICA","VRT","OSNIVANJE PRAVA GRAĐENJA","OSNIVANJE PRAVA GRAĐENJA"]
["XIII ZADARSKA","BEDNJA","NEPLODNO","OSNIVANJE PRAVA SLUŽNOSTI","OSNIVANJE PRAVA SLUŽNOSTI"]
["XIV OSJEČKO-BARANJSKA","BELI MANASTIR","OSTALO","KONCESIJA POLJOPRIVREDNOG ZEMLJIŠTA U VLASNIŠTVU RH","KONCESIJA POLJOPRIVREDNOG ZEMLJIŠTA U VLASNIŠTVU RH"]
["XV ŠIBENSKO-KNINSKA","BELICA",null,"DUGOGODIŠNJI ZAKUP POLJOPRIVREDNOG ZEMLJIŠTA U VLASNIŠTVU RH","DUGOGODIŠNJI ZAKUP POLJOPRIVREDNOG ZEMLJIŠTA U VLASNIŠTVU RH"]
["XVI VUKOVARSKO-SRIJEMSKA","BELIŠĆE",null,"DUGOGODIŠNJI ZAKUP ZA RIBNJAKE","DUGOGODIŠNJI ZAKUP ZA RIBNJAKE"]
["XVII SPLITSKO-DALMATINSKA","BENKOVAC",null,"KONCESIJA ZA RIBNJAKE (KORIŠTENJE RIBNJAKA 2008-2012)","KONCESIJA ZA RIBNJAKE (KORIŠTENJE RIBNJAKA 2008-2012)"]
["XVIII ISTARSKA","BEREK",null,"PRIVATNI RIBNJACI (KOPNENE VODE)","PRIVATNI RIBNJACI (KOPNENE VODE)"]
["XIX DUBROVAČKO-NERETVANSKA","BERETINEC",null,"ZEMLJIŠTE ODREĐENO ZA POVRAT  ","ZEMLJIŠTE ODREĐENO ZA POVRAT  "]
["XX MEĐIMURSKA","BIBINJE"]
["XXI GRAD ZAGREB","BILICE"]
[null,"BILJE"]
[null,"BIOGRAD NA MORU"]
[null,"BISKUPIJA"]
[null,"BISTRA"]
[null,"BIZOVAC"]
[null,"BJELOVAR"]
[null,"BLATO"]
[null,"BOGDANOVCI"]
[null,"BOL"]
[null,"BOROVO"]
[null,"BOSILJEVO"]
[null,"BOŠNJACI"]
[null,"BRCKOVLJANI"]
[null,"BRDOVEC"]
[null,"BRELA"]
[null,"BRESTOVAC"]
[null,"BREZNICA"]
[null,"BREZNIČKI HUM"]
[null,"BRINJE"]
[null,"BROD MORAVICE"]
[null,"BRODSKI STUPNIK"]
[null,"BRTONIGLA - VERTENEGLIO"]
[null,"BUDINŠČINA"]
[null,"BUJE - BUIE"]
[null,"BUKOVLJE"]
[null,"BUZET"]
[null,"CERNA"]
[null,"CERNIK"]
[null,"CEROVLJE"]
[null,"CESTICA"]
[null,"CETINGRAD"]
[null,"CISTA PROVO"]
[null,"CIVLJANE"]
[null,"CRES"]
[null,"CRIKVENICA"]
[null,"CRNAC"]
[null,"ČABAR"]
[null,"ČAČINCI"]
[null,"ČAĐAVICA"]
[null,"ČAGLIN"]
[null,"ČAKOVEC"]
[null,"ČAVLE"]
[null,"ČAZMA"]
[null,"ČEMINAC"]
[null,"ČEPIN"]
[null,"DARDA"]
[null,"DARUVAR"]
[null,"DAVOR"]
[null,"DEKANOVEC"]
[null,"DELNICE"]
[null,"DESINIĆ"]
[null,"DEŽANOVAC"]
[null,"DICMO"]
[null,"DOBRINJ"]
[null,"DOMAŠINEC"]
[null,"DONJA DUBRAVA"]
[null,"DONJA MOTIČINA"]
[null,"DONJA STUBICA"]
[null,"DONJA VOĆA"]
[null,"DONJI ANDRIJEVCI"]
[null,"DONJI KRALJEVEC"]
[null,"DONJI KUKURUZARI"]
[null,"DONJI LAPAC"]
[null,"DONJI MIHOLJAC"]
[null,"DONJI VIDOVEC"]
[null,"DRAGALIĆ"]
[null,"DRAGANIĆ"]
[null,"DRAŽ"]
[null,"DRENOVCI"]
[null,"DRENJE"]
[null,"DRNIŠ"]
[null,"DRNJE"]
[null,"DUBRAVA"]
[null,"DUBRAVICA"]
[null,"DUBROVAČKO PRIMORJE"]
[null,"DUBROVNIK"]
[null,"DUGA RESA"]
[null,"DUGI RAT"]
[null,"DUGO SELO"]
[null,"DUGOPOLJE"]
[null,"DVOR"]
[null,"ĐAKOVO"]
[null,"ĐELEKOVEC"]
[null,"ĐULOVAC"]
[null,"ĐURĐENOVAC"]
[null,"ĐURĐEVAC"]
[null,"ĐURMANEC"]
[null,"ERDUT"]
[null,"ERNESTINOVO"]
[null,"ERVENIK"]
[null,"FARKAŠEVAC"]
[null,"FAŽANA - FASANA"]
[null,"FERDINANDOVAC"]
[null,"FERIČANCI"]
[null,"FUNTANA - FONTANE"]
[null,"FUŽINE"]
[null,"GALOVAC"]
[null,"GARČIN"]
[null,"GAREŠNICA"]
[null,"GENERALSKI STOL"]
[null,"GLINA"]
[null,"GOLA"]
[null,"GORIČAN"]
[null,"GORJANI"]
[null,"GORNJA RIJEKA"]
[null,"GORNJA STUBICA"]
[null,"GORNJA VRBA"]
[null,"GORNJI BOGIĆEVCI"]
[null,"GORNJI KNEGINEC"]
[null,"GORNJI MIHALJEVEC"]
[null,"GOSPIĆ"]
[null,"GRAČAC"]
[null,"GRAČIŠĆE"]
[null,"GRAD ZAGREB"]
[null,"GRADAC"]
[null,"GRADEC"]
[null,"GRADINA"]
[null,"GRADIŠTE"]
[null,"GROŽNJAN - GRISIGNANA"]
[null,"GRUBIŠNO POLJE"]
[null,"GUNDINCI"]
[null,"GUNJA"]
[null,"GVOZD"]
[null,"HERCEGOVAC"]
[null,"HLEBINE"]
[null,"HRAŠĆINA"]
[null,"HRVACE"]
[null,"HRVATSKA DUBICA"]
[null,"HRVATSKA KOSTAJNICA"]
[null,"HUM NA SUTLI"]
[null,"HVAR"]
[null,"ILOK"]
[null,"IMOTSKI"]
[null,"IVANEC"]
[null,"IVANIĆ-GRAD"]
[null,"IVANKOVO"]
[null,"IVANSKA"]
[null,"JAGODNJAK"]
[null,"JAKOVLJE"]
[null,"JAKŠIĆ"]
[null,"JALŽABET"]
[null,"JANJINA"]
[null,"JARMINA"]
[null,"JASENICE"]
[null,"JASENOVAC"]
[null,"JASTREBARSKO"]
[null,"JELENJE"]
[null,"JELSA"]
[null,"JESENJE"]
[null,"JOSIPDOL"]
[null,"KALI"]
[null,"KALINOVAC"]
[null,"KALNIK"]
[null,"KAMANJE"]
[null,"KANFANAR"]
[null,"KAPELA"]
[null,"KAPTOL"]
[null,"KARLOBAG"]
[null,"KARLOVAC"]
[null,"KAROJBA"]
[null,"KASTAV"]
[null,"KAŠTELA"]
[null,"KAŠTELIR-LABINCI - CASTELLIERE-S. DOMENICA"]
[null,"KIJEVO"]
[null,"KISTANJE"]
[null,"KLAKAR"]
[null,"KLANA"]
[null,"KLANJEC"]
[null,"KLENOVNIK"]
[null,"KLINČA SELA"]
[null,"KLIS"]
[null,"KLOŠTAR IVANIĆ"]
[null,"KLOŠTAR PODRAVSKI"]
[null,"KNEŽEVI VINOGRADI"]
[null,"KNIN"]
[null,"KOLAN"]
[null,"KOMIŽA"]
[null,"KONAVLE"]
[null,"KONČANICA"]
[null,"KONJŠČINA"]
[null,"KOPRIVNICA"]
[null,"KOPRIVNIČKI BREGI"]
[null,"KOPRIVNIČKI IVANEC"]
[null,"KORČULA"]
[null,"KOSTRENA"]
[null,"KOŠKA"]
[null,"KOTORIBA"]
[null,"KRALJEVEC NA SUTLI"]
[null,"KRALJEVICA"]
[null,"KRAPINA"]
[null,"KRAPINSKE TOPLICE"]
[null,"KRAŠIĆ"]
[null,"KRAVARSKO"]
[null,"KRIŽ"]
[null,"KRIŽEVCI"]
[null,"KRK"]
[null,"KRNJAK"]
[null,"KRŠAN"]
[null,"KUKLJICA"]
[null,"KULA NORINSKA"]
[null,"KUMROVEC"]
[null,"KUTINA"]
[null,"KUTJEVO"]
[null,"LABIN"]
[null,"LANIŠĆE"]
[null,"LASINJA"]
[null,"LASTOVO"]
[null,"LEĆEVICA"]
[null,"LEGRAD"]
[null,"LEKENIK"]
[null,"LEPOGLAVA"]
[null,"LEVANJSKA VAROŠ"]
[null,"LIPIK"]
[null,"LIPOVLJANI"]
[null,"LIŠANE OSTROVIČKE"]
[null,"LIŽNJAN - LISIGNANO"]
[null,"LOBOR"]
[null,"LOKVE"]
[null,"LOKVIČIĆI"]
[null,"LOPAR"]
[null,"LOVAS"]
[null,"LOVINAC"]
[null,"LOVRAN"]
[null,"LOVREĆ"]
[null,"LUDBREG"]
[null,"LUKA"]
[null,"LUKAČ"]
[null,"LUMBARDA"]
[null,"LUPOGLAV"]
[null,"LJUBEŠĆICA"]
[null,"MAČE"]
[null,"MAGADENOVAC"]
[null,"MAJUR"]
[null,"MAKARSKA"]
[null,"MALA SUBOTICA"]
[null,"MALI BUKOVEC"]
[null,"MALI LOŠINJ"]
[null,"MALINSKA-DUBAŠNICA"]
[null,"MARČANA"]
[null,"MARIJA BISTRICA"]
[null,"MARIJA GORICA"]
[null,"MARIJANCI"]
[null,"MARINA"]
[null,"MARKUŠICA"]
[null,"MARTIJANEC"]
[null,"MARTINSKA VES"]
[null,"MARUŠEVEC"]
[null,"MATULJI"]
[null,"MEDULIN"]
[null,"METKOVIĆ"]
[null,"MIHOVLJAN"]
[null,"MIKLEUŠ"]
[null,"MILNA"]
[null,"MLJET"]
[null,"MOLVE"]
[null,"MOŠĆENIČKA DRAGA"]
[null,"MOTOVUN - MONTONA"]
[null,"MRKOPALJ"]
[null,"MUĆ"]
[null,"MURSKO SREDIŠĆE"]
[null,"MURTER - KORNATI"]
[null,"NAŠICE"]
[null,"NEDELIŠĆE"]
[null,"NEGOSLAVCI"]
[null,"NEREŽIŠĆA"]
[null,"NETRETIĆ"]
[null,"NIJEMCI"]
[null,"NIN"]
[null,"NOVA BUKOVICA"]
[null,"NOVA GRADIŠKA"]
[null,"NOVA KAPELA"]
[null,"NOVA RAČA"]
[null,"NOVALJA"]
[null,"NOVI GOLUBOVEC"]
[null,"NOVI MAROF"]
[null,"NOVI VINODOLSKI"]
[null,"NOVIGRAD"]
[null,"NOVIGRAD - CITTANOVA"]
[null,"NOVIGRAD PODRAVSKI"]
[null,"NOVO VIRJE"]
[null,"NOVSKA"]
[null,"NUŠTAR"]
[null,"OBROVAC"]
[null,"OGULIN"]
[null,"OKRUG"]
[null,"OKUČANI"]
[null,"OMIŠ"]
[null,"OMIŠALJ"]
[null,"OPATIJA"]
[null,"OPRISAVCI"]
[null,"OPRTALJ - PORTOLE"]
[null,"OPUZEN"]
[null,"ORAHOVICA"]
[null,"OREBIĆ"]
[null,"OREHOVICA"]
[null,"ORIOVAC"]
[null,"ORLE"]
[null,"OROSLAVJE"]
[null,"OSIJEK"]
[null,"OTOČAC"]
[null,"OTOK"]
[null,"OTOK (Vinkovci)"]
[null,"OZALJ"]
[null,"PAG"]
[null,"PAKOŠTANE"]
[null,"PAKRAC"]
[null,"PAŠMAN"]
[null,"PAZIN"]
[null,"PERUŠIĆ"]
[null,"PETERANEC"]
[null,"PETLOVAC"]
[null,"PETRIJANEC"]
[null,"PETRIJEVCI"]
[null,"PETRINJA"]
[null,"PETROVSKO"]
[null,"PIĆAN"]
[null,"PIROVAC"]
[null,"PISAROVINA"]
[null,"PITOMAČA"]
[null,"PLAŠKI"]
[null,"PLETERNICA"]
[null,"PLITVIČKA JEZERA"]
[null,"PLOČE"]
[null,"PODBABLJE"]
[null,"PODCRKAVLJE"]
[null,"PODGORA"]
[null,"PODGORAČ"]
[null,"PODRAVSKA MOSLAVINA"]
[null,"PODRAVSKE SESVETE"]
[null,"PODSTRANA"]
[null,"PODTUREN"]
[null,"POJEZERJE"]
[null,"POKUPSKO"]
[null,"POLAČA"]
[null,"POLIČNIK"]
[null,"POPOVAC"]
[null,"POPOVAČA"]
[null,"POREČ - PARENZO"]
[null,"POSEDARJE"]
[null,"POSTIRA"]
[null,"POVLJANA"]
[null,"POŽEGA"]
[null,"PREGRADA"]
[null,"PREKO"]
[null,"PRELOG"]
[null,"PRESEKA"]
[null,"PRGOMET"]
[null,"PRIBISLAVEC"]
[null,"PRIMORSKI DOLAC"]
[null,"PRIMOŠTEN"]
[null,"PRIVLAKA"]
[null,"PRIVLAKA (Vinkovci)"]
[null,"PROLOŽAC"]
[null,"PROMINA"]
[null,"PUČIŠĆA"]
[null,"PULA - POLA"]
[null,"PUNAT"]
[null,"PUNITOVCI"]
[null,"PUŠĆA"]
[null,"RAB"]
[null,"RADOBOJ"]
[null,"RAKOVEC"]
[null,"RAKOVICA"]
[null,"RASINJA"]
[null,"RAŠA"]
[null,"RAVNA GORA"]
[null,"RAŽANAC"]
[null,"REŠETARI"]
[null,"RIBNIK"]
[null,"RIJEKA"]
[null,"ROGOZNICA"]
[null,"ROVINJ - ROVIGNO"]
[null,"ROVIŠĆE"]
[null,"RUGVICA"]
[null,"RUNOVIĆI"]
[null,"RUŽIĆ"]
[null,"SABORSKO"]
[null,"SALI"]
[null,"SAMOBOR"]
[null,"SATNICA ĐAKOVAČKA"]
[null,"SEGET"]
[null,"SELCA"]
[null,"SELNICA"]
[null,"SEMELJCI"]
[null,"SENJ"]
[null,"SEVERIN"]
[null,"SIBINJ"]
[null,"SIKIREVCI"]
[null,"SINJ"]
[null,"SIRAČ"]
[null,"SISAK"]
[null,"SKRAD"]
[null,"SKRADIN"]
[null,"SLATINA"]
[null,"SLAVONSKI BROD"]
[null,"SLAVONSKI ŠAMAC"]
[null,"SLIVNO"]
[null,"SLUNJ"]
[null,"SMOKVICA"]
[null,"SOKOLOVAC"]
[null,"SOLIN"]
[null,"SOPJE"]
[null,"SPLIT"]
[null,"SRAČINEC"]
[null,"STANKOVCI"]
[null,"STARA GRADIŠKA"]
[null,"STARI GRAD"]
[null,"STARI JANKOVCI"]
[null,"STARI MIKANOVCI"]
[null,"STARIGRAD"]
[null,"STARO PETROVO SELO"]
[null,"STON"]
[null,"STRAHONINEC"]
[null,"STRIZIVOJNA"]
[null,"STUBIČKE TOPLICE"]
[null,"STUPNIK"]
[null,"SUĆURAJ"]
[null,"SUHOPOLJE"]
[null,"SUKOŠAN"]
[null,"SUNJA"]
[null,"SUPETAR"]
[null,"SUTIVAN"]
[null,"SVETA MARIJA"]
[null,"SVETA NEDELJA"]
[null,"SVETA NEDELJA (Labin)"]
[null,"SVETI ĐURĐ"]
[null,"SVETI FILIP I JAKOV"]
[null,"SVETI ILIJA"]
[null,"SVETI IVAN ZELINA"]
[null,"SVETI IVAN ŽABNO"]
[null,"SVETI JURAJ NA BREGU"]
[null,"SVETI KRIŽ ZAČRETJE"]
[null,"SVETI LOVREČ"]
[null,"SVETI MARTIN NA MURI"]
[null,"SVETI PETAR OREHOVEC"]
[null,"SVETI PETAR U ŠUMI"]
[null,"SVETVINČENAT"]
[null,"ŠANDROVAC"]
[null,"ŠENKOVEC"]
[null,"ŠESTANOVAC"]
[null,"ŠIBENIK"]
[null,"ŠKABRNJA"]
[null,"ŠODOLOVCI"]
[null,"ŠOLTA"]
[null,"ŠPIŠIĆ BUKOVICA"]
[null,"ŠTEFANJE"]
[null,"ŠTITAR"]
[null,"ŠTRIGOVA"]
[null,"TAR-VABRIGA - TORRE-ABREGA"]
[null,"TINJAN"]
[null,"TISNO"]
[null,"TKON"]
[null,"TOMPOJEVCI"]
[null,"TOPUSKO"]
[null,"TORDINCI"]
[null,"TOUNJ"]
[null,"TOVARNIK"]
[null,"TRIBUNJ"]
[null,"TRILJ"]
[null,"TRNAVA"]
[null,"TRNOVEC BARTOLOVEČKI"]
[null,"TROGIR"]
[null,"TRPANJ"]
[null,"TRPINJA"]
[null,"TUČEPI"]
[null,"TUHELJ"]
[null,"UDBINA"]
[null,"UMAG - UMAGO"]
[null,"UNEŠIĆ"]
[null,"VALPOVO"]
[null,"VARAŽDIN"]
[null,"VARAŽDINSKE TOPLICE"]
[null,"VELA LUKA"]
[null,"VELIKA"]
[null,"VELIKA GORICA"]
[null,"VELIKA KOPANICA"]
[null,"VELIKA LUDINA"]
[null,"VELIKA PISANICA"]
[null,"VELIKA TRNOVITICA"]
[null,"VELIKI BUKOVEC"]
[null,"VELIKI GRĐEVAC"]
[null,"VELIKO TRGOVIŠĆE"]
[null,"VELIKO TROJSTVO"]
[null,"VIDOVEC"]
[null,"VILJEVO"]
[null,"VINICA"]
[null,"VINKOVCI"]
[null,"VINODOLSKA OPĆINA"]
[null,"VIR"]
[null,"VIRJE"]
[null,"VIROVITICA"]
[null,"VIS"]
[null,"VISOKO"]
[null,"VIŠKOVCI"]
[null,"VIŠKOVO"]
[null,"VIŠNJAN - VISIGNANO"]
[null,"VIŽINADA - VISINADA"]
[null,"VLADISLAVCI"]
[null,"VOĆIN"]
[null,"VODICE"]
[null,"VODNJAN - DIGNANO"]
[null,"VOĐINCI"]
[null,"VOJNIĆ"]
[null,"VRATIŠINEC"]
[null,"VRBANJA"]
[null,"VRBJE"]
[null,"VRBNIK"]
[null,"VRBOVEC"]
[null,"VRBOVSKO"]
[null,"VRGORAC"]
[null,"VRHOVINE"]
[null,"VRLIKA"]
[null,"VRPOLJE"]
[null,"VRSAR - ORSERA"]
[null,"VRSI"]
[null,"VUKA"]
[null,"VUKOVAR"]
[null,"ZABOK"]
[null,"ZADAR"]
[null,"ZADVARJE"]
[null,"ZAGORSKA SELA"]
[null,"ZAGVOZD"]
[null,"ZAPREŠIĆ"]
[null,"ZAŽABLJE"]
[null,"ZDENCI"]
[null,"ZEMUNIK DONJI"]
[null,"ZLATAR"]
[null,"ZLATAR BISTRICA"]
[null,"ZMIJAVCI"]
[null,"ZRINSKI TOPOLOVAC"]
[null,"ŽAKANJE"]
[null,"ŽMINJ"]
[null,"ŽUMBERAK"]
[null,"ŽUPA DUBROVAČKA"]
[null,"ŽUPANJA"]